Workbook

Sheet 附件1教育部门
A1: 附件1-1
A2: 2025年市、县（区）中等职业学校学生资助资金安排表（教育部门）
A3: 单位：万元
A4: 市、县（区） | B4: 2024年资金情况 | H4: 2025年资金情况
B5: 省级应承担资金 | D5: 闽财教指〔2024〕28号可用资金 | F5: 应追补资金 | H5: 省级预算 | J5: 闽财教指〔2024〕89号已下达资金 | L5: 本次应下达资金 | N5: 本次实际下达资金
B6: 免学费 | C6: 助学金 | D6: 免学费 | E6: 助学金 | F6: 免学费 | G6: 助学金 | H6: 免学费 | I6: 助学金 | J6: 免学费 | K6: 助学金 | L6: 免学费 | M6: 助学金 | N6: 免学费 | O6: 助学金
A7: 总计 | B7: 31156.77 | C7: 1801.84 | D7: 32702.64 | E7: 2399.5 | F7: -1545.87 | G7: -612.62 | H7: 34343.87 | I7: 4801.62 | J7: 29692 | K7: 2921 | L7: 4651.87 | M7: 1880.62 | N7: 3106 | O7: 1268
A8: 福州市小计 | B8: 4052.66 | C8: 151.18 | D8: 4193.71 | E8: 333.66 | F8: -141.05 | G8: -182.48 | H8: 4399.05 | I8: 450.48 | J8: 3860 | K8: 182 | L8: 539.05 | M8: 268.48 | N8: 398 | O8: 86
A9: 福州市本级 | B9: 678.2 | C9: 14.6 | D9: 755.99 | E9: 80.98 | F9: -77.79 | G9: -66.38 | H9: 769.79 | I9: 69.38 | J9: 660 | K9: 0 | L9: 109.79 | M9: 69.38 | N9: 32 | O9: 3
A10: 台江区 | B10: 34.02 | C10: 0.4 | D10: 36.95 | E10: 2.72 | F10: -2.93 | G10: -2.32 | H10: 39.93 | I10: 3.32 | J10: 35 | K10: 0 | L10: 4.93 | M10: 3.32 | N10: 2 | O10: 1
A11: 仓山区 | B11: 205.56 | C11: 16.96 | D11: 201.3 | E11: 17.12 | F11: 4.26 | G11: -0.16 | H11: 219.74 | I11: 52.16 | J11: 111 | K11: 29 | L11: 108.74 | M11: 23.16 | N11: 113 | O11: 23
A12: 马尾区 | B12: 78.56 | C12: 2.82 | D12: 79.63 | E12: 6.9 | F12: -1.07 | G12: -4.08 | H12: 85.07 | I12: 12.08 | J12: 77 | K12: 5 | L12: 8.07 | M12: 7.08 | N12: 7 | O12: 3
A13: 闽侯县 | B13: 220.75 | C13: 7.68 | D13: 233.02 | E13: 9.84 | F13: -12.27 | G13: -2.16 | H13: 247.27 | I13: 20.16 | J13: 225 | K13: 16 | L13: 22.27 | M13: 4.16 | N13: 10 | O13: 2
A14: 连江县 | B14: 365.8 | C14: 10.32 | D14: 384.58 | E14: 23.12 | F14: -18.78 | G14: -12.8 | H14: 403.78 | I14: 32.8 | J14: 368 | K14: 20 | L14: 35.78 | M14: 12.8 | N14: 17 | O14: 0
A15: 罗源县 | B15: 307.06 | C15: 16.8 | D15: 309.44 | E15: 19.34 | F15: -2.38 | G15: -2.54 | H15: 325.38 | I15: 47.54 | J15: 299 | K15: 32 | L15: 26.38 | M15: 15.54 | N15: 24 | O15: 13
A16: 闽清县 | B16: 358.85 | C16: 22 | D16: 371.26 | E16: 25.76 | F16: -12.41 | G16: -3.76 | H16: 387.41 | I16: 46.76 | J16: 358 | K16: 43 | L16: 29.41 | M16: 3.76 | N16: 17 | O16: 0
A17: 永泰县 | B17: 406.39 | C17: 19.04 | D17: 399.79 | E17: 21.96 | F17: 6.6 | G17: -2.92 | H17: 427.4 | I17: 52.92 | J17: 370 | K17: 37 | L17: 57.4 | M17: 15.92 | N17: 64 | O17: 13
A18: 福清市 | B18: 884.56 | C18: 27.48 | D18: 897.18 | E18: 88.24 | F18: -12.62 | G18: -60.76 | H18: 939.62 | I18: 70.76 | J18: 850 | K18: 0 | L18: 89.62 | M18: 70.76 | N18: 77 | O18: 10
A19: 长乐区 | B19: 404.21 | C19: 10.72 | D19: 409.02 | E19: 29.24 | F19: -4.81 | G19: -18.52 | H19: 429.81 | I19: 32.52 | J19: 395 | K19: 0 | L19: 34.81 | M19: 32.52 | N19: 30 | O19: 14
A20: 福州高新技术产业开发区 | B20: 108.7 | C20: 2.36 | D20: 115.55 | E20: 8.44 | F20: -6.85 | G20: -6.08 | H20: 123.85 | I20: 10.08 | J20: 112 | K20: 0 | L20: 11.85 | M20: 10.08 | N20: 5 | O20: 4
A21: 莆田市小计 | B21: 3590.77 | C21: 135.06 | D21: 3764.16 | E21: 237.72 | F21: -173.39 | G21: -102.66 | H21: 3835.39 | I21: 323.66 | J21: 3364 | K21: 165 | L21: 471.39 | M21: 158.66 | N21: 298 | O21: 56
A22: 莆田市本级 | B22: 1498.29 | C22: 46.56 | D22: 1570.13 | E22: 135.4 | F22: -71.84 | G22: -88.84 | H22: 1571.84 | I22: 119.84 | J22: 1362 | K22: 0 | L22: 209.84 | M22: 119.84 | N22: 138 | O22: 31
A23: 城厢区 | B23: 379.01 | C23: 16.62 | D23: 387.72 | E23: 17.56 | F23: -8.71 | G23: -0.94 | H23: 412.71 | I23: 40.94 | J23: 373 | K23: 29 | L23: 39.71 | M23: 11.94 | N23: 31 | O23: 11
A24: 涵江区 | B24: 462.86 | C24: 15.72 | D24: 528.14 | E24: 21.5 | F24: -65.28 | G24: -5.78 | H24: 498.28 | I24: 40.78 | J24: 411 | K24: 28 | L24: 87.28 | M24: 12.78 | N24: 22 | O24: 7
A25: 荔城区 | B25: 202.73 | C25: 9.36 | D25: 203.79 | E25: 9.9 | F25: -1.06 | G25: -0.54 | H25: 217.06 | I25: 20.54 | J25: 195 | K25: 17 | L25: 22.06 | M25: 3.54 | N25: 21 | O25: 3
A26: 秀屿区 | B26: 245.76 | C26: 13.92 | D26: 258.15 | E26: 16.08 | F26: -12.39 | G26: -2.16 | H26: 281.39 | I26: 33.16 | J26: 237 | K26: 27 | L26: 44.39 | M26: 6.16 | N26: 32 | O26: 4
A27: 仙游县 | B27: 802.12 | C27: 32.88 | D27: 816.23 | E27: 37.28 | F27: -14.11 | G27: -4.4 | H27: 854.11 | I27: 68.4 | J27: 786 | K27: 64 | L27: 68.11 | M27: 4.4 | N27: 54 | O27: 0
A28: 三明市小计 | B28: 2357.25 | C28: 181.56 | D28: 2562.82 | E28: 197.64 | F28: -205.57 | G28: -16.08 | H28: 2692.57 | I28: 503.08 | J28: 2213 | K28: 316 | L28: 479.57 | M28: 187.08 | N28: 274 | O28: 171
A29: 三明市本级 | B29: 682.84 | C29: 32.04 | D29: 819.26 | E29: 36.64 | F29: -136.42 | G29: -4.6 | H29: 809.42 | I29: 99.6 | J29: 642 | K29: 57 | L29: 167.42 | M29: 42.6 | N29: 31 | O29: 38
A30: 明溪县 | B30: 102.82 | C30: 7.92 | D30: 99.97 | E30: 9.56 | F30: 2.85 | G30: -1.64 | H30: 112.15 | I30: 22.64 | J30: 96 | K30: 15 | L30: 16.15 | M30: 7.64 | N30: 19 | O30: 6
A31: 清流县 | B31: 165.73 | C31: 12.16 | D31: 160.37 | E31: 12.08 | F31: 5.36 | G31: 0.08 | H31: 184.64 | I31: 31.92 | J31: 154 | K31: 21 | L31: 30.64 | M31: 10.92 | N31: 36 | O31: 11
A32: 大田县 | B32: 487.34 | C32: 52.72 | D32: 518.58 | E32: 57.32 | F32: -31.24 | G32: -4.6 | H32: 531.24 | I32: 127.6 | J32: 478 | K32: 90 | L32: 53.24 | M32: 37.6 | N32: 22 | O32: 33
A33: 尤溪县 | B33: 262.5 | C33: 16.08 | D33: 316.59 | E33: 18.2 | F33: -54.09 | G33: -2.12 | H33: 342.09 | I33: 38.12 | J33: 276 | K33: 30 | L33: 66.09 | M33: 8.12 | N33: 12 | O33: 6
A34: 沙县区 | C34: 1.28 | D34: 0 | E34: 1.84 | F34: 0 | G34: -0.56 | H34: 0 | I34: 4.56 | J34: 0 | K34: 2 | L34: 0 | M34: 2.56 | O34: 2
A35: 将乐县 | B35: 106.87 | C35: 21.76 | D35: 109.76 | E35: 20.64 | F35: -2.89 | G35: 1.12 | H35: 115.89 | I35: 43.88 | J35: 95 | K35: 34 | L35: 20.89 | M35: 9.88 | N35: 18 | O35: 11
A36: 泰宁县 | B36: 161.7 | C36: 7.6 | D36: 149.88 | E36: 9 | F36: 11.82 | G36: -1.4 | H36: 184.18 | I36: 25.4 | J36: 143 | K36: 14 | L36: 41.18 | M36: 11.4 | N36: 53 | O36: 10
A37: 建宁县 | B37: 101.22 | C37: 6.24 | D37: 102.35 | E37: 7.52 | F37: -1.13 | G37: -1.28 | H37: 110.13 | I37: 40.28 | J37: 98 | K37: 12 | L37: 12.13 | M37: 28.28 | N37: 11 | O37: 27
A38: 永安市 | B38: 286.23 | C38: 23.76 | D38: 286.06 | E38: 24.84 | F38: 0.17 | G38: -1.08 | H38: 302.83 | I38: 69.08 | J38: 231 | K38: 41 | L38: 71.83 | M38: 28.08 | N38: 72 | O38: 27
A39: 泉州市小计 | B39: 6732.12 | C39: 303.06 | D39: 6974.09 | E39: 366.68 | F39: -241.97 | G39: -63.62 | H39: 7428.97 | I39: 886.62 | J39: 6391 | K39: 522 | L39: 1037.97 | M39: 364.62 | N39: 796 | O39: 301
A40: 泉州市本级 | B40: 799.48 | C40: 40.48 | D40: 907.87 | E40: 39.44 | F40: -108.39 | G40: 1.04 | H40: 802.39 | I40: 131.96 | J40: 643 | K40: 67 | L40: 159.39 | M40: 64.96 | N40: 51 | O40: 66
A41: 鲤城区 | B41: 66.61 | C41: 2.16 | D41: 63.59 | E41: 3.94 | F41: 3.02 | G41: -1.78 | H41: 75.98 | I41: 9.78 | J41: 61 | K41: 3 | L41: 14.98 | M41: 6.78 | N41: 18 | O41: 5
A42: 丰泽区 | B42: 292.87 | C42: 10.84 | D42: 351.48 | E42: 27.08 | F42: -58.61 | G42: -16.24 | H42: 373.61 | I42: 38.24 | J42: 315 | K42: 22 | L42: 58.61 | M42: 16.24 | N42: 0 | O42: 0
A43: 泉港区 | B43: 56.18 | C43: 4.04 | D43: 56.26 | E43: 5.64 | F43: -0.08 | G43: -1.6 | H43: 70.08 | I43: 15.6 | J43: 54 | K43: 6 | L43: 16.08 | M43: 9.6 | N43: 16 | O43: 8
A44: 惠安县 | B44: 517.32 | C44: 15.16 | D44: 534.78 | E44: 40.52 | F44: -17.46 | G44: -25.36 | H44: 545.46 | I44: 54.36 | J44: 482 | K44: 29 | L44: 63.46 | M44: 25.36 | N44: 46 | O44: 0
A45: 安溪县 | B45: 1580.54 | C45: 84.8 | D45: 1585.23 | E45: 87.4 | F45: -4.69 | G45: -2.6 | H45: 1729.69 | I45: 207.6 | J45: 1516 | K45: 145 | L45: 213.69 | M45: 62.6 | N45: 209 | O45: 60
A46: 永春县 | B46: 498.29 | C46: 19.68 | D46: 481.3 | E46: 24.4 | F46: 16.99 | G46: -4.72 | H46: 543.01 | I46: 45.72 | J46: 463 | K46: 35 | L46: 80.01 | M46: 10.72 | N46: 97 | O46: 6
A47: 德化县 | B47: 491.32 | C47: 23.76 | D47: 483.01 | E47: 26.36 | F47: 8.31 | G47: -2.6 | H47: 528.69 | I47: 56.6 | J47: 465 | K47: 44 | L47: 63.69 | M47: 12.6 | N47: 72 | O47: 10
A48: 石狮市 | B48: 137.15 | C48: 4.72 | D48: 135.31 | E48: 6.88 | F48: 1.84 | G48: -2.16 | H48: 150.16 | I48: 33.16 | J48: 130 | K48: 8 | L48: 20.16 | M48: 25.16 | N48: 22 | O48: 23
A49: 晋江市 | B49: 679.06 | C49: 30.06 | D49: 661.48 | E49: 28.66 | F49: 17.58 | G49: 1.4 | H49: 740.42 | I49: 121.6 | J49: 637 | K49: 48 | L49: 103.42 | M49: 73.6 | N49: 121 | O49: 75
A50: 南安市 | B50: 1425.06 | C50: 62.28 | D50: 1433.71 | E50: 59.2 | F50: -8.65 | G50: 3.08 | H50: 1532.65 | I50: 145.92 | J50: 1380 | K50: 101 | L50: 152.65 | M50: 44.92 | N50: 144 | O50: 48
A51: 泉州市台商投资区 | B51: 188.24 | C51: 5.08 | D51: 280.07 | E51: 17.16 | F51: -91.83 | G51: -12.08 | H51: 336.83 | I51: 26.08 | J51: 245 | K51: 14 | L51: 91.83 | M51: 12.08 | N51: 0 | O51: 0
A52: 漳州市小计 | B52: 4291.87 | C52: 200.7 | D52: 4734.02 | E52: 363.52 | F52: -442.15 | G52: -162.82 | H52: 4995.15 | I52: 568.82 | J52: 4327 | K52: 330 | L52: 668.15 | M52: 238.82 | N52: 226 | O52: 76
A53: 漳州市本级 | B53: 1727.03 | C53: 71.04 | D53: 1918.9 | E53: 106.72 | F53: -191.87 | G53: -35.68 | H53: 1995.87 | I53: 200.68 | J53: 1726 | K53: 135 | L53: 269.87 | M53: 65.68 | N53: 78 | O53: 30
A54: 芗城区 | B54: 30.79 | C54: 0.84 | D54: 89.69 | E54: 2.04 | F54: -58.9 | G54: -1.2 | H54: 90.9 | I54: 5.2 | J54: 32 | K54: 2 | L54: 58.9 | M54: 3.2 | N54: 0 | O54: 2
A55: 云霄县 | B55: 415.88 | C55: 25.12 | D55: 451.71 | E55: 27.36 | F55: -35.83 | G55: -2.24 | H55: 473.83 | I55: 48.24 | J55: 418 | K55: 46 | L55: 55.83 | M55: 2.24 | N55: 20 | O55: 0
A56: 漳浦县 | B56: 357.25 | C56: 15.92 | D56: 412.3 | E56: 22.72 | F56: -55.05 | G56: -6.8 | H56: 446.05 | I56: 36.8 | J56: 375 | K56: 30 | L56: 71.05 | M56: 6.8 | N56: 16 | O56: 0
A57: 诏安县 | B57: 318.7 | C57: 19.2 | D57: 353.13 | E57: 21.8 | F57: -34.43 | G57: -2.6 | H57: 388.43 | I57: 44.6 | J57: 340 | K57: 37 | L57: 48.43 | M57: 7.6 | N57: 14 | O57: 5
A58: 长泰区 | B58: 74.66 | C58: 4.74 | D58: 77.29 | E58: 5.4 | F58: -2.63 | G58: -0.66 | H58: 80.63 | I58: 12.66 | J58: 74 | K58: 8 | L58: 6.63 | M58: 4.66 | N58: 4 | O58: 4
A59: 东山县 | B59: 269.56 | C59: 11.36 | D59: 267.44 | E59: 12.88 | F59: 2.12 | G59: -1.52 | H59: 292.88 | I59: 28.52 | J59: 257 | K59: 20 | L59: 35.88 | M59: 8.52 | N59: 38 | O59: 7
A60: 南靖县 | B60: 461.66 | C60: 23.2 | D60: 481.85 | E60: 129.44 | F60: -20.19 | G60: -106.24 | H60: 505.19 | I60: 106.24 | J60: 463 | K60: 0 | L60: 42.19 | M60: 106.24 | N60: 22 | O60: 0
A61: 平和县 | B61: 221.51 | C61: 10.64 | D61: 248.67 | E61: 12.16 | F61: -27.16 | G61: -1.52 | H61: 263.16 | I61: 32.52 | J61: 226 | K61: 18 | L61: 37.16 | M61: 14.52 | N61: 10 | O61: 13
A62: 华安县 | B62: 92.06 | C62: 4.32 | D62: 92.29 | E62: 6.48 | F62: -0.23 | G62: -2.16 | H62: 98.23 | I62: 14.16 | J62: 89 | K62: 8 | L62: 9.23 | M62: 6.16 | N62: 9 | O62: 4
A63: 龙海区 | B63: 184.09 | C63: 8.12 | D63: 190.12 | E63: 9 | F63: -6.03 | G63: -0.88 | H63: 198.03 | I63: 24.88 | J63: 183 | K63: 14 | L63: 15.03 | M63: 10.88 | N63: 9 | O63: 10
A64: 漳州市台商投资区 | B64: 138.68 | C64: 6.2 | D64: 150.63 | E64: 7.52 | F64: -11.95 | G64: -1.32 | H64: 161.95 | I64: 14.32 | J64: 144 | K64: 12 | L64: 17.95 | M64: 2.32 | N64: 6 | O64: 1
A65: 南平市小计 | B65: 2789.1 | C65: 214.54 | D65: 2896.49 | E65: 235.04 | F65: -107.39 | G65: -20.5 | H65: 3028.39 | I65: 506.5 | J65: 2587 | K65: 385 | L65: 441.39 | M65: 121.5 | N65: 334 | O65: 101
A66: 南平市本级 | B66: 1061.84 | C66: 50.7 | D66: 1092.82 | E66: 60.6 | F66: -30.98 | G66: -9.9 | H66: 1094.98 | I66: 133.9 | J66: 913 | K66: 97 | L66: 181.98 | M66: 36.9 | N66: 151 | O66: 27
A67: 延平区 | B67: 195.8 | C67: 12.4 | D67: 191.97 | E67: 11.96 | F67: 3.83 | G67: 0.44 | H67: 215.17 | I67: 26.56 | J67: 183 | K67: 20 | L67: 32.17 | M67: 6.56 | N67: 36 | O67: 7
A68: 顺昌县 | B68: 160.02 | C68: 12.64 | D68: 173.84 | E68: 14.6 | F68: -13.82 | G68: -1.96 | H68: 186.82 | I68: 29.96 | J68: 166 | K68: 25 | L68: 20.82 | M68: 4.96 | N68: 7 | O68: 3
A69: 浦城县 | B69: 152.38 | C69: 12.8 | D69: 160.41 | E69: 14.56 | F69: -8.03 | G69: -1.76 | H69: 168.03 | I69: 33.76 | J69: 153 | K69: 24 | L69: 15.03 | M69: 9.76 | N69: 7 | O69: 8
A70: 光泽县 | B70: 90.49 | C70: 34.4 | D70: 81.16 | E70: 33.32 | F70: 9.33 | G70: 1.08 | H70: 107.67 | I70: 62.92 | J70: 62 | K70: 57 | L70: 45.67 | M70: 5.92 | N70: 55 | O70: 7
A71: 松溪县 | B71: 113.65 | C71: 7.52 | D71: 112.19 | E71: 8.08 | F71: 1.46 | G71: -0.56 | H71: 121.54 | I71: 20.56 | J71: 108 | K71: 13 | L71: 13.54 | M71: 7.56 | N71: 15 | O71: 7
A72: 政和县 | B72: 111.38 | C72: 9.76 | D72: 111.32 | E72: 8.16 | F72: 0.06 | G72: 1.6 | H72: 118.94 | I72: 30.4 | J72: 107 | K72: 14 | L72: 11.94 | M72: 16.4 | N72: 12 | O72: 18
A73: 邵武市 | B73: 288.54 | C73: 13.44 | D73: 291.34 | E73: 13.56 | F73: -2.8 | G73: -0.12 | H73: 305.8 | I73: 35.12 | J73: 280 | K73: 23 | L73: 25.8 | M73: 12.12 | N73: 23 | O73: 12
A74: 武夷山市 | B74: 359.64 | C74: 48.16 | D74: 394.75 | E74: 53.88 | F74: -35.11 | G74: -5.72 | H74: 412.11 | I74: 97.72 | J74: 361 | K74: 92 | L74: 51.11 | M74: 5.72 | N74: 16 | O74: 0
A75: 建瓯市 | B75: 255.36 | C75: 12.72 | D75: 286.69 | E75: 16.32 | F75: -31.33 | G75: -3.6 | H75: 297.33 | I75: 35.6 | J75: 254 | K75: 20 | L75: 43.33 | M75: 15.6 | N75: 12 | O75: 12
A76: 龙岩市小计 | B76: 2976.34 | C76: 228.8 | D76: 3121.73 | E76: 233.32 | F76: -145.39 | G76: -19.48 | H76: 3238.39 | I76: 610.48 | J76: 2795 | K76: 390 | L76: 443.39 | M76: 220.48 | N76: 298 | O76: 201
A77: 龙岩市本级 | B77: 595.74 | C77: 75.24 | D77: 621.83 | E77: 78.72 | F77: -26.09 | G77: -3.48 | H77: 606.09 | I77: 185.48 | J77: 400 | K77: 135 | L77: 206.09 | M77: 50.48 | N77: 180 | O77: 47
A78: 新罗区 | B78: 347.63 | C78: 20.36 | D78: 356.43 | E78: 22.88 | F78: -8.8 | G78: -2.52 | H78: 368.8 | I78: 72.52 | J78: 343 | K78: 38 | L78: 25.8 | M78: 34.52 | N78: 17 | O78: 32
A79: 长汀县 | B79: 399.34 | C79: 24.48 | D79: 437.18 | E79: 33.24 | F79: -37.84 | G79: -8.76 | H79: 467.84 | I79: 90.76 | J79: 411 | K79: 50 | L79: 56.84 | M79: 40.76 | N79: 19 | O79: 32
A80: 永定区 | B80: 335.66 | C80: 22 | D80: 350.4 | E80: 24.12 | F80: -14.74 | G80: -2.12 | H80: 367.74 | I80: 55.12 | J80: 337 | K80: 41 | L80: 30.74 | M80: 14.12 | N80: 16 | O80: 12
A81: 上杭县 | B81: 496.69 | C81: 31.6 | D81: 517.33 | E81: 33.96 | F81: -20.64 | G81: -2.36 | H81: 541.64 | I81: 89.36 | J81: 498 | K81: 58 | L81: 43.64 | M81: 31.36 | N81: 23 | O81: 29
A82: 武平县 | B82: 344.57 | C82: 21.12 | D82: 361.62 | E82: 22.8 | F82: -17.05 | G82: -1.68 | H82: 382.05 | I82: 65.68 | J82: 348 | K82: 38 | L82: 34.05 | M82: 27.68 | N82: 17 | O82: 26
A83: 连城县 | B83: 187.74 | C83: 14.96 | D83: 203.94 | F83: -16.2 | H83: 220.2 | I83: 0 | J83: 195 | K83: 0 | L83: 25.2 | M83: 0 | N83: 9 | O83: 0
A84: 漳平市 | B84: 268.97 | C84: 19.04 | D84: 273 | E84: 17.6 | F84: -4.03 | G84: 1.44 | H84: 284.03 | I84: 51.56 | J84: 263 | K84: 30 | L84: 21.03 | M84: 21.56 | N84: 17 | O84: 23
A85: 宁德市小计 | B85: 4029.74 | C85: 370.22 | D85: 4120.13 | E85: 416.24 | F85: -90.39 | G85: -46.02 | H85: 4357.39 | I85: 907.02 | J85: 3832 | K85: 605 | L85: 525.39 | M85: 302.02 | N85: 435 | O85: 256
A86: 宁德市本级 | B86: 241.82 | C86: 11.1 | D86: 312.74 | E86: 60.08 | F86: -70.92 | G86: -48.98 | H86: 295.92 | I86: 48.98 | J86: 225 | K86: 0 | L86: 70.92 | M86: 48.98 | N86: 0 | O86: 0
A87: 蕉城区 | B87: 315.42 | C87: 19.84 | D87: 304.14 | E87: 20.52 | F87: 11.28 | G87: -0.68 | H87: 345.72 | I87: 42.68 | J87: 293 | K87: 35 | L87: 52.72 | M87: 7.68 | N87: 64 | O87: 7
A88: 霞浦县 | B88: 457.55 | C88: 28.88 | D88: 461.47 | E88: 30.92 | F88: -3.92 | G88: -2.04 | H88: 483.92 | I88: 70.04 | J88: 444 | K88: 52 | L88: 39.92 | M88: 18.04 | N88: 36 | O88: 16
A89: 古田县 | B89: 226.97 | C89: 14.48 | D89: 226.21 | E89: 16.6 | F89: 0.76 | G89: -2.12 | H89: 245.24 | I89: 43.12 | J89: 218 | K89: 24 | L89: 27.24 | M89: 19.12 | N89: 28 | O89: 17
A90: 屏南县 | B90: 222.85 | C90: 15.92 | D90: 222.3 | E90: 16.12 | F90: 0.55 | G90: -0.2 | H90: 235.45 | I90: 52.2 | J90: 214 | K90: 27 | L90: 21.45 | M90: 25.2 | N90: 22 | O90: 25
A91: 寿宁县 | B91: 191.1 | C91: 18.8 | D91: 198.54 | E91: 18.72 | F91: -7.44 | G91: 0.08 | H91: 206.44 | I91: 53.92 | J91: 190 | K91: 32 | L91: 16.44 | M91: 21.92 | N91: 9 | O91: 22
A92: 周宁县 | B92: 234.61 | C92: 17.92 | D92: 236.76 | E92: 18.84 | F92: -2.15 | G92: -0.92 | H92: 249.15 | I92: 60.92 | J92: 227 | K92: 32 | L92: 22.15 | M92: 28.92 | N92: 20 | O92: 28
A93: 柘荣县 | B93: 316.18 | C93: 28 | D93: 332.96 | E93: 31.28 | F93: -16.78 | G93: -3.28 | H93: 352.78 | I93: 71.28 | J93: 321 | K93: 53 | L93: 31.78 | M93: 18.28 | N93: 15 | O93: 15
A94: 福安市 | B94: 1125.18 | C94: 115.84 | D94: 1125.26 | E94: 105.88 | F94: -0.08 | G94: 9.96 | H94: 1192.08 | I94: 260.04 | J94: 1067 | K94: 182 | L94: 125.08 | M94: 78.04 | N94: 125 | O94: 88
A95: 福鼎市 | B95: 698.06 | C95: 99.44 | D95: 699.75 | E95: 97.28 | F95: -1.69 | G95: 2.16 | H95: 750.69 | I95: 203.84 | J95: 633 | K95: 168 | L95: 117.69 | M95: 35.84 | N95: 116 | O95: 38
A96: 平潭综合实验区 | B96: 336.92 | C96: 16.72 | D96: 335.49 | E96: 15.68 | F96: 1.43 | G96: 1.04 | H96: 368.57 | I96: 44.96 | J96: 323 | K96: 26 | L96: 45.57 | M96: 18.96 | N96: 47 | O96: 20

Sheet 附件2人社部门 (hidden)
A1: 附件2
A2: 2023年市、县（区）中等职业学校学生资助 资金安排表（人社部门）
F3: 单位：人、万元
A4: 单位名称 | B4: 本次下达资金合计 | C4: 免学费 | E4: 助学金
C5: 闽财教指〔2022〕117号已下达资金 | D5: 本次下达资金 | E5: 2022年预计受助学生数 | F5: 闽财教指〔2022〕117号已下达资金 | G5: 本次下达中央资金 | H5: =C6+D6+F6+G6 -> 6513
A6: 合计 | B6: =B7+B25+B9+B13+B16+B23+B11+B20 -> 28 | C6: 6015 | D6: 105 | E6: 6765 | F6: 470 | G6: -77
A7: 福州市 | B7: =B8 -> -77 | C7: 1168 | D7: 0 | E7: 2111 | F7: 84 | G7: -77
A8: 福州市本级 | B8: =D8+G8 -> -77 | C8: 1168 | D8: 0 | E8: 2111 | F8: 84 | G8: -77
A9: 莆田市 | B9: =B10 -> 0 | C9: 410 | D9: 0 | E9: 305 | F9: 37 | G9: 0
A10: 莆田市本级 | B10: =D10+G10 -> 0 | C10: 410 | D10: 0 | E10: 305 | F10: 37 | G10: 0
A11: 三明市 | B11: =B12 -> 2 | C11: 469 | D11: 2 | E11: 299 | F11: 36 | G11: 0
A12: 三明市本级 | B12: =D12+G12 -> 2 | C12: 469 | D12: 2 | E12: 299 | F12: 36 | G12: 0
A13: 泉州市 | B13: =SUM(B14:B15) -> 0 | C13: 614 | D13: 0 | E13: 1111 | F13: 47 | G13: 0
A14: 泉州市本级 | B14: =D14+G14 -> 0 | C14: 573 | D14: 0 | E14: 1045 | F14: 42 | G14: 0
A15: 惠安县 | B15: =D15+G15 -> 0 | C15: 41 | D15: 0 | E15: 66 | F15: 5 | G15: 0
A16: 漳州市 | B16: =B17+B18+B19 -> 71 | C16: 971 | D16: 71 | E16: 917 | F16: 74 | G16: 0
A17: 漳州市本级 | B17: =D17+G17 -> 0 | C17: 364 | D17: 0 | E17: 328 | F17: 26 | G17: 0
A18: 漳州台商投资区 | B18: =D18+G18 -> 71 | C18: 575 | D18: 71 | E18: 575 | F18: 46 | G18: 0
A19: 平和县 | B19: =D19+G19 -> 0 | C19: 32 | D19: 0 | E19: 14 | F19: 2 | G19: 0
A20: 南平市 | B20: =B21+B22 -> 0 | C20: 644 | D20: 0 | E20: 405 | F20: 50 | G20: 0
A21: 南平市本级 | B21: =D21+G21 -> 0 | C21: 552 | D21: 0 | E21: 360 | F21: 43 | G21: 0
A22: 建瓯市 | B22: =D22+G22 -> 0 | C22: 92 | D22: 0 | E22: 45 | F22: 7 | G22: 0
A23: 龙岩市 | B23: =B24 -> 0 | C23: 1268 | D23: 0 | E23: 1305 | F23: 104 | G23: 0
A24: 龙岩市本级 | B24: =D24+G24 -> 0 | C24: 1268 | D24: 0 | E24: 1305 | F24: 104 | G24: 0
A25: 宁德市 | B25: =SUM(B26) -> 32 | C25: =SUM(C26:C27) -> 471 | D25: =SUM(D26:D27) -> 32 | E25: =SUM(E26:E27) -> 312 | F25: =SUM(F26:F27) -> 38 | G25: =SUM(G26:G27) -> 0
A26: 宁德市本级 | B26: =D26+G26 -> 32 | C26: 460 | D26: 32 | E26: 306 | F26: 37 | G26: 0
A27: 古田县 | B27: =D27+G27 -> 0 | C27: 11 | D27: 0 | E27: 6 | F27: 1 | G27: 0

Sheet 附件3 (hidden)
A1: 附件3
A2: 专项转移支付绩效目标表 （2023年度）
A3: 项目名称 | D3: 中等职业学校学生资助
A4: 主管部门（单位）名称及部门预算编码 | D4: 福建省教育厅 | F4: 补助区域 | G4: 各设区市
A5: 资金情况 （万元） | D5: 资金总额：
D6: 其中：财政拨款 | E6: 43638
D7: 其他资金 | E7: 43638
A8: 总体目标 | B8: 目标1：普通高中教育各项国家资助按规定得到落实； 目标2：教育公平显著提升，满足家庭经济困难学生基本学习生活需要。
A9: 绩 效 指 标 | B9: 一级 指标 | C9: 二级指标 | D9: 三级指标 | E9: 指标解释 | F9: 区域目标值
B10: 产 出 指 标 | C10: 成本指标 | D10: 中职免学费政策，补助标准：全日制涉农专业学生免学费每生每学年2400元，非涉农专业学生每生每学年2100元，艺术院校全日制艺术类专业学生、医药卫生院校全日制医学卫生类专业学生、技工学校的数控机床加工、模具设计制造与维修、电气工程全日制高级技工专业（仅指高中起点两年制）学生每生每学年分别为3600元、3000、3200元 | E10: 补助标准：全日制涉农专业学生免学费每生每学年2400元，非涉农专业学生每生每学年2100元，艺术院校全日制艺术类专业学生、医药卫生院校全日制医学卫生类专业学生、技工学校的数控机床加工、模具设计制造与维修、电气工程全日制高级技工专业（仅指高中起点两年制）学生每生每学年分别为3600元、3000、3200元 | F10: 不低于省定标准，及时足额下达
D11: 实施中职国家助学金政策。每生每年2000元 | E11: 补助标准：每生每年2000元 | F11: 不低于省定标准，及时足额下达
C12: 数量指标 | D12: 免学费受助学生人数（分春、秋两个学期统计） | E12: 按要求认定受助学生 | F12: 福州市约150000人次
F13: 莆田市约50000人次
F14: 三明市约32000人次
F15: 泉州市约170000人次
F16: 漳州市约90000人次
F17: 南平市约35000人次
F18: 龙岩市约60000人次
F19: 宁德市约40000人次
F20: 平潭综合实验区约2000人次
D21: 国家助学金受助学生人数（分春、秋两个学期统计） | E21: 按要求认定受助学生 | F21: 福州市约7000人次
F22: 莆田市约2000人次
F23: 三明市约2700人次
F24: 泉州市约9000人次
F25: 漳州市约5300人次
F26: 南平市约3000人次
F27: 龙岩市约6000人次
F28: 宁德市约4000人次
F29: 平潭综合实验区约100人次
D30: 中职国家奖学金奖励人数 | E30: 中职国家奖学金奖励人数 | F30: 按下达名额
C31: 质量指标 | D31: 中职阶段应受助学生受助比例 | E31: 中职阶段应受助学生受助比例 | F31: 100%
C32: 时效指标 | D32: 奖助学金按规定及时发放率 | E32: 奖助学金按规定及时发放率 | F32: 100%
B33: 效益 指标 | C33: 社会效益 指标 | D33: 在中职国家助学金名额分配时，结合实际向脱贫地区倾斜 | E33: 在中职国家助学金名额分配时，结合实际向脱贫地区倾斜 | F33: 是
B34: 满意度 指标 | C34: 服务对象 满意度指标 | D34: 师生满意度 | E34: 师生满意度 | F34: ≥85%
A35: 注：指标解释是对绩效目标三级指标进行解释说明，包括计算方法、评分标准、指标出处、具体内容、上年度数值等

Sheet 教育免学费过渡表 (hidden)
A1: 2022年市、县（区）中等职业学校学生免学费明细表（教育部门）
A2: 市、县（区） | B2: 分专业统计受助学生人数 | L2: 免学费财政补助资金测算情况 | W2: 分担比例
B3: 人数合计 | D3: 一般专业 | F3: 涉农专业 | H3: 医学专业 | J3: 艺术专业 | L3: 免学费资金合计 | O3: 免学费资金分担情况 | Q3: 闽财教指〔2022〕48号 | R3: 结余资金(负数为有结余） | S3: 应下达（按秋季学期测算） | T3: 已下达 | U3: 2023年可用资金 | V3: 本次应下达
B4: 春季 | C4: 秋季 | D4: 春季 | E4: 秋季 | F4: 春季 | G4: 秋季 | H4: 春季 | I4: 秋季 | J4: 春季 | K4: 秋季 | L4: 合计 | M4: 涉农专业 | N4: 其它专业 | O4: 省级 | P4: 市县区
A5: 总计 | B5: =B6+B36+B19+B49+B62+B73+B26+B82+B93 -> 248412 | C5: 270733 | D5: 230686 | E5: 253782 | F5: 5128 | G5: 5121 | H5: 11331 | I5: 10462 | J5: 1267 | K5: 1368 | L5: 55837 | M5: 1231 | N5: 54606 | O5: 28918 | P5: 26919 | Q5: 25170 | R5: 3748 | S5: =S6+S36+S19+S49+S62+S73+S26+S82+S93 -> 29196 | T5: 27651 | U5: 31099 | V5: 7196
A6: 福州市小计 | B6: =SUM(B7:B18) -> 48402 | C6: 50343 | D6: 46469 | E6: 49021 | F6: 608 | G6: 613 | H6: 1156 | I6: 521 | J6: 169 | K6: 188 | L6: 10489 | M6: 147 | N6: 10342 | O6: 3892 | P6: 6597 | Q6: 3671 | R6: 221 | S6: =SUM(S7:S18) -> 3858 | T6: 3917 | U6: 4292 | V6: 596
A7: 福州市本级 | B7: 17228 | C7: 16955 | D7: =B7-F7-H7-J7 -> 15719 | E7: =C7-G7-I7-K7 -> 16110 | F7: 184 | G7: 136 | H7: 1156 | I7: 521 | J7: 169 | K7: 188 | L7: =M7+N7 -> 3696 | M7: =ROUND((F7+G7)*0.12,0) -> 38 | N7: =ROUND(((D7+E7)*0.21+(H7+I7)*0.3+(J7+K7)*0.36)/2,0) -> 3658 | O7: =ROUND(N7*W7/10+M7,0) -> 770 | P7: =L7-O7 -> 2926 | Q7: 924 | R7: =O7-Q7 -> -154 | S7: =ROUND(((E7)*0.21+(I7)*0.3+(K7)*0.36)*W7/10,0) -> 721 | T7: 882 | U7: =T7-R7 -> 1036 | V7: 0 | W7: 2
A8: 台江区 | B8: 665 | C8: 739 | D8: 665 | E8: 739 | F8: 0 | G8: 0 | L8: 147 | M8: 0 | N8: 147 | O8: 29 | P8: 118 | Q8: 25 | R8: 4 | S8: 31 | T8: 27 | U8: 31 | V8: =S8+R8-T8 -> 8 | W8: 2 | X8: =U8=S8 -> TRUE
A9: 仓山区 | B9: 2524 | C9: 2650 | D9: 2245 | E9: 2297 | F9: 279 | G9: 353 | L9: 553 | M9: 76 | N9: 477 | O9: 171 | P9: 382 | Q9: 139 | R9: 32 | S9: 96 | T9: 160 | U9: =T9-R9 -> 128 | V9: 0 | W9: 2
A10: 马尾区 | B10: 1926 | C10: 1899 | D10: 1926 | E10: 1899 | F10: 0 | G10: 0 | L10: 402 | M10: 0 | N10: 402 | O10: 80 | P10: 322 | Q10: 75 | R10: 5 | S10: 80 | T10: 82 | U10: 80 | V10: 3 | W10: 2 | X10: TRUE
A11: 闽侯县 | B11: 2475 | C11: 2657 | D11: 2475 | E11: 2657 | F11: 0 | G11: 0 | L11: 539 | M11: 0 | N11: 539 | O11: 216 | P11: 323 | Q11: 194 | R11: 22 | S11: 223 | T11: 214 | U11: 223 | V11: 31 | W11: 4 | X11: TRUE
A12: 连江县 | B12: 2458 | C12: 2754 | D12: 2419 | E12: 2730 | F12: 39 | G12: 24 | L12: 549 | M12: 8 | N12: 541 | O12: 333 | P12: 216 | Q12: 249 | R12: 84 | S12: 344 | T12: 299 | U12: 344 | V12: 129 | W12: 6 | X12: TRUE
A13: 罗源县 | B13: 1991 | C13: 2182 | D13: 1991 | E13: 2182 | F13: 0 | G13: 0 | L13: 438 | M13: 0 | N13: 438 | O13: 263 | P13: 175 | Q13: 221 | R13: 42 | S13: 275 | T13: 249 | U13: 275 | V13: 68 | W13: 6 | X13: TRUE
A14: 闽清县 | B14: 1826 | C14: 2177 | D14: 1826 | E14: 2177 | F14: 0 | G14: 0 | L14: 420 | M14: 0 | N14: 420 | O14: 336 | P14: 84 | Q14: 249 | R14: 87 | S14: 366 | T14: 294 | U14: 366 | V14: 159 | W14: 8 | X14: TRUE
A15: 永泰县 | B15: 2028 | C15: 2265 | D15: 2028 | E15: 2265 | F15: 0 | G15: 0 | L15: 451 | M15: 0 | N15: 451 | O15: 361 | P15: 90 | Q15: 321 | R15: 40 | S15: 381 | T15: 345 | U15: 381 | V15: 76 | W15: 8 | X15: TRUE
A16: 福清市 | B16: 10098 | C16: 10150 | D16: 9992 | E16: 10050 | F16: 106 | G16: 100 | L16: 2129 | M16: 25 | N16: 2104 | O16: 867 | P16: 1262 | Q16: 876 | R16: -9 | S16: 844 | T16: 922 | U16: =T16-R16 -> 931 | V16: 0 | W16: 4
A17: 长乐区 | B17: 4157 | C17: 4666 | D17: 4157 | E17: 4666 | F17: 0 | G17: 0 | L17: 926 | M17: 0 | N17: 926 | O17: 370 | P17: 556 | Q17: 313 | R17: 57 | S17: 392 | T17: 351 | U17: 392 | V17: =S17+R17-T17 -> 98 | W17: 4 | X17: =U17=S17 -> TRUE
A18: 福州高新技术产业开发区 | B18: 1026 | C18: 1249 | D18: 1026 | E18: 1249 | F18: 0 | G18: 0 | L18: 239 | M18: 0 | N18: 239 | O18: 96 | P18: 143 | Q18: 85 | R18: 11 | S18: 105 | T18: 92 | U18: 105 | V18: 24 | W18: 4 | X18: =U18=S18 -> TRUE
A19: 莆田市小计 | B19: =SUM(B20:B25) -> 22663 | C19: 25987 | D19: 20884 | E19: 23996 | F19: 235 | G19: 122 | H19: 1196 | I19: 1351 | J19: 348 | K19: 518 | L19: 5293 | M19: 43 | N19: 5250 | O19: 3356 | P19: 1937 | Q19: 2778 | R19: 578 | S19: =SUM(S20:S25) -> 3563 | T19: 3105 | U19: 3563 | V19: 1036
A20: 莆田市本级 | B20: 10441 | C20: 11291 | D20: =B20-F20-H20-J20 -> 8662 | E20: =C20-G20-I20-K20 -> 9300 | F20: 235 | G20: 122 | H20: 1196 | I20: 1351 | J20: 348 | K20: 518 | L20: =M20+N20 -> 2467 | M20: =ROUND((F20+G20)*0.12,0) -> 43 | N20: =ROUND(((D20+E20)*0.21+(H20+I20)*0.3+(J20+K20)*0.36)/2,0) -> 2424 | O20: =ROUND(N20*W20/10+M20,0) -> 1497 | P20: =L20-O20 -> 970 | Q20: 1287 | R20: =O20-Q20 -> 210 | S20: =ROUND(((E20)*0.21+(I20)*0.3+(K20)*0.36)*W20/10,0) -> 1527 | T20: 1420 | U20: 1527 | V20: 317 | W20: 6
A21: 城厢区 | B21: 2432 | C21: 2986 | D21: 2432 | E21: 2986 | F21: 0 | G21: 0 | L21: 569 | M21: 0 | N21: 569 | O21: 341 | P21: 228 | Q21: 269 | R21: 72 | S21: 376 | T21: 307 | U21: 376 | V21: 141 | W21: 6
A22: 涵江区 | B22: 3136 | C22: 3711 | D22: 3136 | E22: 3711 | F22: 0 | G22: 0 | L22: 719 | M22: 0 | N22: 719 | O22: 431 | P22: 288 | Q22: 338 | R22: 93 | S22: 468 | T22: 388 | U22: 468 | V22: 173 | W22: 6
A23: 荔城区 | B23: 1451 | C23: 1587 | D23: 1451 | E23: 1587 | F23: 0 | G23: 0 | L23: 319 | M23: 0 | N23: 319 | O23: 191 | P23: 128 | Q23: 185 | R23: 6 | S23: 200 | T23: 196 | U23: 200 | V23: 10 | W23: 6
A24: 秀屿区 | B24: 1757 | C24: 2038 | D24: 1757 | E24: 2038 | F24: 0 | G24: 0 | L24: 398 | M24: 0 | N24: 398 | O24: 239 | P24: 159 | Q24: 207 | R24: 32 | S24: 257 | T24: 225 | U24: 257 | V24: 64 | W24: 6
A25: 仙游县 | B25: 3446 | C25: 4374 | D25: 3446 | E25: 4374 | F25: 0 | G25: 0 | L25: 821 | M25: 0 | N25: 821 | O25: 657 | P25: 164 | Q25: 492 | R25: 165 | S25: 735 | T25: 569 | U25: 735 | V25: 331 | W25: 8
A26: 三明市小计 | B26: =SUM(B27:B35) -> 15202 | C26: 15890 | D26: 12831 | E26: 13674 | F26: 559 | G26: 669 | H26: 1812 | I26: 1547 | J26: 0 | K26: 0 | L26: 3433 | M26: 148 | N26: 3285 | O26: 2301 | P26: 1132 | Q26: 2008 | R26: 293 | S26: =SUM(S27:S35) -> 2192 | T26: 2274 | U26: 2334 | V26: 353
A27: 三明市本级 | B27: 6236 | C27: 6072 | D27: =B27-F27-H27-J27 -> 4424 | E27: =C27-G27-I27-K27 -> 4525 | F27: 0 | G27: 0 | H27: 1812 | I27: 1547 | L27: =M27+N27 -> 1443 | M27: =ROUND((F27+G27)*0.12,0) -> 0 | N27: =ROUND(((D27+E27)*0.21+(H27+I27)*0.3+(J27+K27)*0.36)/2,0) -> 1443 | O27: =ROUND(N27*W27/10+M27,0) -> 866 | P27: =L27-O27 -> 577 | Q27: 898 | R27: =O27-Q27 -> -32 | S27: =ROUND(((E27)*0.21+(I27)*0.3+(K27)*0.36)*W27/10,0) -> 849 | T27: 959 | U27: =T27-R27 -> 991 | V27: 0 | W27: 6
A28: 明溪县 | B28: 366 | C28: 456 | D28: 366 | E28: 456 | F28: 0 | G28: 0 | L28: 86 | M28: 0 | N28: 86 | O28: 69 | P28: 17 | Q28: 44 | R28: 25 | S28: 77 | T28: 56 | U28: 77 | V28: =S28+R28-T28 -> 46 | W28: 8 | X28: =U28=S28 -> TRUE
A29: 清流县 | B29: 692 | C29: 755 | D29: 692 | E29: 755 | F29: 0 | G29: 0 | L29: 152 | M29: 0 | N29: 152 | O29: 122 | P29: 30 | Q29: 102 | R29: 20 | S29: 127 | T29: 115 | U29: 127 | V29: 32 | W29: 8 | X29: TRUE
A30: 大田县 | B30: 2479 | C30: 2760 | D30: 2288 | E30: 2503 | F30: 191 | G30: 257 | L30: 557 | M30: 54 | N30: 503 | O30: 456 | P30: 101 | Q30: 315 | R30: 141 | S30: 421 | T30: 402 | U30: 421 | V30: 160 | W30: 8 | X30: TRUE
A31: 尤溪县 | B31: 1502 | C31: 1588 | D31: 1502 | E31: 1588 | F31: 0 | G31: 0 | L31: 324 | M31: 0 | N31: 324 | O31: 259 | P31: 65 | Q31: 228 | R31: 31 | S31: 267 | T31: 257 | U31: 267 | V31: 41 | W31: 8 | X31: TRUE
A32: 将乐县 | B32: 380 | C32: 444 | D32: 286 | E32: 347 | F32: 94 | G32: 97 | L32: 89 | M32: 23 | N32: 66 | O32: 76 | P32: 13 | Q32: 54 | R32: 22 | S32: 58 | T32: 66 | U32: 58 | V32: 14 | W32: 8 | X32: TRUE
A33: 泰宁县 | B33: 677 | C33: 671 | D33: 677 | E33: 671 | F33: 0 | G33: 0 | L33: 142 | M33: 0 | N33: 142 | O33: 114 | P33: 28 | Q33: 99 | R33: 15 | S33: 113 | T33: 113 | U33: 113 | V33: 15 | W33: 8 | X33: TRUE
A34: 建宁县 | B34: 476 | C34: 507 | D34: 476 | E34: 507 | F34: 0 | G34: 0 | L34: 103 | M34: 0 | N34: 103 | O34: 82 | P34: 21 | Q34: 65 | R34: 17 | S34: 85 | T34: 77 | U34: 85 | V34: 25 | W34: 8 | X34: TRUE
A35: 永安市 | B35: 2394 | C35: 2637 | D35: 2120 | E35: 2322 | F35: 274 | G35: 315 | L35: 537 | M35: 71 | N35: 466 | O35: 257 | P35: 280 | Q35: 203 | R35: 54 | S35: 195 | T35: 229 | U35: 195 | V35: 20 | W35: 4 | X35: TRUE
A36: 泉州市小计 | B36: =SUM(B37:B48) -> 71619 | C36: 77771 | D36: 67791 | E36: 74090 | F36: 997 | G36: 1146 | H36: 2081 | I36: 1873 | J36: 750 | K36: 662 | L36: 16002 | M36: 258 | N36: 15744 | O36: 5985 | P36: 10017 | Q36: 4636 | R36: 1349 | S36: =SUM(S37:S48) -> 6074 | T36: 5572 | U36: 6085 | V36: 1862
A37: 泉州市本级 | B37: 16533 | C37: 17362 | D37: =B37-F37-H37-J37 -> 13050 | E37: =C37-G37-I37-K37 -> 14083 | F37: 652 | G37: 744 | H37: 2081 | I37: 1873 | J37: 750 | K37: 662 | L37: =M37+N37 -> 3864 | M37: =ROUND((F37+G37)*0.12,0) -> 168 | N37: =ROUND(((D37+E37)*0.21+(H37+I37)*0.3+(J37+K37)*0.36)/2,0) -> 3696 | O37: =ROUND(N37*W37/10+M37,0) -> 907 | P37: =L37-O37 -> 2957 | Q37: 578 | R37: =O37-Q37 -> 329 | S37: =ROUND(((E37)*0.21+(I37)*0.3+(K37)*0.36)*W37/10,0) -> 752 | T37: 921 | U37: 752 | V37: =S37+R37-T37 -> 160 | W37: 2 | X37: =U37=S37 -> TRUE
A38: 鲤城区 | B38: 1166 | C38: 1329 | D38: 1166 | E38: 1329 | F38: 0 | G38: 0 | L38: 262 | M38: 0 | N38: 262 | O38: 52 | P38: 210 | Q38: 41 | R38: 11 | S38: 56 | T38: 48 | U38: 56 | V38: 19 | W38: 2 | X38: TRUE
A39: 丰泽区 | B39: 8381 | C39: 8465 | D39: 8381 | E39: 8465 | F39: 0 | G39: 0 | L39: 1769 | M39: 0 | N39: 1769 | O39: 354 | P39: 1415 | Q39: 343 | R39: 11 | S39: 356 | T39: 368 | U39: =T39-R39 -> 357 | V39: 0 | W39: 2
A40: 泉港区 | B40: 344 | C40: 700 | D40: 344 | E40: 700 | F40: 0 | G40: 0 | L40: 110 | M40: 0 | N40: 110 | O40: 22 | P40: 88 | Q40: 21 | R40: 1 | S40: 29 | T40: 7 | U40: 29 | V40: 23 | W40: 2 | X40: TRUE
A41: 惠安县 | B41: 5244 | C41: 5542 | D41: 4968 | E41: 5252 | F41: 276 | G41: 290 | L41: 1141 | M41: 68 | N41: 1073 | O41: 497 | P41: 644 | Q41: 454 | R41: 43 | S41: 441 | T41: 494 | U41: =T41-R41 -> 451 | V41: 0 | W41: 4
A42: 安溪县 | B42: 5659 | C42: 7669 | D42: 5590 | E42: 7557 | F42: 69 | G42: 112 | L42: 1402 | M42: 22 | N42: 1380 | O42: 1126 | P42: 276 | Q42: 727 | R42: 399 | S42: 1270 | T42: 892 | U42: 1270 | V42: =S42+R42-T42 -> 777 | W42: 8 | X42: =U42=S42 -> TRUE
A43: 永春县 | B43: 2006 | C43: 2462 | D43: 2006 | E43: 2462 | F43: 0 | G43: 0 | L43: 469 | M43: 0 | N43: 469 | O43: 375 | P43: 94 | Q43: 301 | R43: 74 | S43: 414 | T43: 335 | U43: 414 | V43: 153 | W43: 8 | X43: TRUE
A44: 德化县 | B44: 2023 | C44: 2520 | D44: 2023 | E44: 2520 | F44: 0 | G44: 0 | L44: 477 | M44: 0 | N44: 477 | O44: 382 | P44: 95 | Q44: 281 | R44: 101 | S44: 423 | T44: 330 | U44: 423 | V44: 194 | W44: 8 | X44: TRUE
A45: 石狮市 | B45: 2875 | C45: 3117 | D45: 2875 | E45: 3117 | F45: 0 | G45: 0 | L45: 629 | M45: 0 | N45: 629 | O45: 126 | P45: 503 | Q45: 104 | R45: 22 | S45: 131 | T45: 119 | U45: 131 | V45: 34 | W45: 2 | X45: TRUE
A46: 晋江市 | B46: 14737 | C46: 15011 | D46: 14737 | E46: 15011 | F46: 0 | G46: 0 | L46: 3124 | M46: 0 | N46: 3124 | O46: 625 | P46: 2499 | Q46: 591 | R46: 34 | S46: 630 | T46: 641 | U46: 630 | V46: 23 | W46: 2 | X46: TRUE
A47: 南安市 | B47: 9584 | C47: 10239 | D47: 9584 | E47: 10239 | F47: 0 | G47: 0 | L47: 2081 | M47: 0 | N47: 2081 | O47: 1249 | P47: 832 | Q47: 1034 | R47: 215 | S47: 1290 | T47: 1189 | U47: 1290 | V47: 316 | W47: 6 | X47: TRUE
A48: 泉州市台商投资区 | B48: 3067 | C48: 3355 | D48: 3067 | E48: 3355 | F48: 0 | G48: 0 | L48: 674 | M48: 0 | N48: 674 | O48: 270 | P48: 404 | Q48: 161 | R48: 109 | S48: 282 | T48: 228 | U48: 282 | V48: 163 | W48: 4 | X48: TRUE
A49: 漳州市小计 | B49: =SUM(B50:B61) -> 35911 | C49: 40132 | D49: 33476 | E49: 37696 | F49: 167 | G49: 117 | H49: 2268 | I49: 2319 | J49: 0 | K49: 0 | L49: 8195 | M49: 34 | N49: 8161 | O49: 4375 | P49: 3820 | Q49: 3592 | R49: 783 | S49: =SUM(S50:S61) -> 4602 | T49: 4081 | U49: 4602 | V49: 1304 | X49: TRUE
A50: 漳州市本级 | B50: 20225 | C50: 21965 | D50: =B50-F50-H50-J50 -> 17790 | E50: =C50-G50-I50-K50 -> 19529 | F50: 167 | G50: 117 | H50: 2268 | I50: 2319 | L50: =M50+N50 -> 4641 | M50: =ROUND((F50+G50)*0.12,0) -> 34 | N50: =ROUND(((D50+E50)*0.21+(H50+I50)*0.3+(J50+K50)*0.36)/2,0) -> 4607 | O50: =ROUND(N50*W50/10+M50,0) -> 1877 | P50: =L50-O50 -> 2764 | Q50: 1589 | R50: =O50-Q50 -> 288 | S50: =ROUND(((E50)*0.21+(I50)*0.3+58*0.36)*W50/10,0) -> 1927 | T50: 1806 | U50: 1927 | V50: =S50+R50-T50 -> 409 | W50: 4 | X50: TRUE | Y50: 新增58名艺术院校艺术专业
A51: 芗城区 | B51: 304 | C51: 422 | D51: 304 | E51: 422 | F51: 0 | G51: 0 | L51: 76 | M51: 0 | N51: 76 | O51: 30 | P51: 46 | Q51: 23 | R51: 7 | S51: =ROUND(((E51)*0.21+(I51)*0.3+(K51)*0.36)*W51/10,0) -> 35 | T51: 25 | U51: 35 | V51: 17 | W51: 4 | X51: TRUE
A52: 云霄县 | B52: 2371 | C52: 2659 | D52: 2371 | E52: 2659 | F52: 0 | G52: 0 | L52: 528 | M52: 0 | N52: 528 | O52: 422 | P52: 106 | Q52: 353 | R52: 69 | S52: 447 | T52: 392 | U52: 447 | V52: 124 | W52: 8 | X52: TRUE
A53: 漳浦县 | B53: 2311 | C53: 2579 | D53: 2311 | E53: 2579 | F53: 0 | G53: 0 | L53: 513 | M53: 0 | N53: 513 | O53: 410 | P53: 103 | Q53: 359 | R53: 51 | S53: 433 | T53: 395 | U53: 433 | V53: 89 | W53: 8 | X53: TRUE
A54: 诏安县 | B54: 1984 | C54: 2024 | D54: 1984 | E54: 2024 | F54: 0 | G54: 0 | L54: 421 | M54: 0 | N54: 421 | O54: 337 | P54: 84 | Q54: 254 | R54: 83 | S54: 340 | T54: 322 | U54: 340 | V54: 101 | W54: 8 | X54: TRUE
A55: 长泰区 | B55: 466 | C55: 576 | D55: 466 | E55: 576 | F55: 0 | G55: 0 | L55: 109 | M55: 0 | N55: 109 | O55: 65 | P55: 44 | Q55: 44 | R55: 21 | S55: 73 | T55: 55 | U55: 73 | V55: 39 | W55: 6 | X55: TRUE
A56: 东山县 | B56: 973 | C56: 1424 | D56: 973 | E56: 1424 | F56: 0 | G56: 0 | L56: 252 | M56: 0 | N56: 252 | O56: 202 | P56: 50 | Q56: 116 | R56: 86 | S56: 239 | T56: 149 | U56: 239 | V56: 176 | W56: 8 | X56: TRUE
A57: 南靖县 | B57: 2195 | C57: 2669 | D57: 2195 | E57: 2669 | F57: 0 | G57: 0 | L57: 511 | M57: 0 | N57: 511 | O57: 409 | P57: 102 | Q57: 354 | R57: 55 | S57: 448 | T57: 359 | U57: 448 | V57: 144 | W57: 8 | X57: TRUE
A58: 平和县 | B58: 1382 | C58: 1526 | D58: 1382 | E58: 1526 | F58: 0 | G58: 0 | L58: 305 | M58: 0 | N58: 305 | O58: 244 | P58: 61 | Q58: 220 | R58: 24 | S58: 256 | T58: 240 | U58: 256 | V58: 40 | W58: 8 | X58: TRUE
A59: 华安县 | B59: 519 | C59: 526 | D59: 519 | E59: 526 | F59: 0 | G59: 0 | L59: 110 | M59: 0 | N59: 110 | O59: 88 | P59: 22 | Q59: 74 | R59: 14 | S59: 88 | T59: 85 | U59: 88 | V59: 17 | W59: 8 | X59: TRUE
A60: 龙海区 | B60: 2106 | C60: 2281 | D60: 2106 | E60: 2281 | F60: 0 | G60: 0 | L60: 461 | M60: 0 | N60: 461 | O60: 184 | P60: 277 | Q60: 158 | R60: 26 | S60: 192 | T60: 178 | U60: 192 | V60: 40 | W60: 4 | X60: TRUE
A61: 漳州市台商投资区 | B61: 1075 | C61: 1481 | D61: 1075 | E61: 1481 | F61: 0 | G61: 0 | L61: 268 | M61: 0 | N61: 268 | O61: 107 | P61: 161 | Q61: 48 | R61: 59 | S61: 124 | T61: 75 | U61: 124 | V61: 108 | W61: 4 | X61: TRUE
A62: 南平市小计 | B62: =SUM(B63:B72) -> 15342 | C62: 16808 | D62: 12566 | E62: 13854 | F62: 535 | G62: 419 | H62: 2241 | I62: 2535 | J62: 0 | K62: 0 | L62: 3603 | M62: 115 | N62: 3488 | O62: 2574 | P62: 1029 | Q62: 2887 | R62: -313 | S62: =SUM(S63:S72) -> 2594 | T62: 2526 | U62: 3156 | V62: 317
A63: 南平市本级 | B63: 6784 | C63: 7120 | D63: =B63-F63-H63-J63 -> 4404 | E63: =C63-G63-I63-K63 -> 4517 | F63: 139 | G63: 68 | H63: 2241 | I63: 2535 | L63: =M63+N63 -> 1678 | M63: =ROUND((F63+G63)*0.12,0) -> 25 | N63: =ROUND(((D63+E63)*0.21+(H63+I63)*0.3+(J63+K63)*0.36)/2,0) -> 1653 | O63: =ROUND(N63*W63/10+M63,0) -> 1017 | P63: =L63-O63 -> 661 | Q63: 1193 | R63: =O63-Q63 -> -176 | S63: =ROUND(((E63)*0.21+(I63)*0.3+(K63)*0.36)*W63/10,0) -> 1025 | T63: 1003 | U63: =T63-R63 -> 1179 | V63: 0 | W63: 6
A64: 延平区 | B64: 621 | C64: 922 | D64: 621 | E64: 922 | F64: 0 | G64: 0 | L64: 162 | M64: 0 | N64: 162 | O64: 130 | P64: 32 | Q64: 86 | R64: 44 | S64: 155 | T64: 97 | U64: 155 | V64: =S64+R64-T64 -> 102 | W64: 8 | X64: =U64=S64 -> TRUE
A65: 顺昌县 | B65: 735 | C65: 862 | D65: 735 | E65: 862 | F65: 0 | G65: 0 | L65: 168 | M65: 0 | N65: 168 | O65: 134 | P65: 34 | Q65: 88 | R65: 46 | S65: 145 | T65: 112 | U65: 145 | V65: 79 | W65: 8 | X65: TRUE
A66: 浦城县 | B66: 929 | C66: 961 | D66: 929 | E66: 961 | F66: 0 | G66: 0 | L66: 198 | M66: 0 | N66: 198 | O66: 158 | P66: 40 | Q66: 227 | R66: -69 | S66: 161 | T66: 155 | U66: 224 | V66: 0 | W66: 8
A67: 光泽县 | B67: 277 | C67: 312 | D67: 148 | E67: 159 | F67: 129 | G67: 153 | L67: 66 | M67: 34 | N67: 32 | O67: 60 | P67: 6 | Q67: 59 | R67: 1 | S67: 27 | T67: 98 | U67: 97 | V67: 0 | W67: 8
A68: 松溪县 | B68: 385 | C68: 553 | D68: 385 | E68: 553 | F68: 0 | G68: 0 | L68: 98 | M68: 0 | N68: 98 | O68: 78 | P68: 20 | Q68: 49 | R68: 29 | S68: 93 | T68: 60 | U68: 93 | V68: 62 | W68: 8 | X68: TRUE
A69: 政和县 | B69: 550 | C69: 626 | D69: 550 | E69: 626 | F69: 0 | G69: 0 | L69: 123 | M69: 0 | N69: 123 | O69: 98 | P69: 25 | Q69: 148 | R69: -50 | S69: 105 | T69: 95 | U69: =T69-R69 -> 145 | V69: 0 | W69: 8
A70: 邵武市 | B70: 1369 | C70: 1529 | D70: 1369 | E70: 1529 | F70: 0 | G70: 0 | L70: 304 | M70: 0 | N70: 304 | O70: 243 | P70: 61 | Q70: 198 | R70: 45 | S70: 257 | T70: 228 | U70: 257 | V70: =S70+R70-T70 -> 74 | W70: 8 | X70: =U70=S70 -> TRUE
A71: 武夷山市 | B71: 2059 | C71: 2143 | D71: 1792 | E71: 1945 | F71: 267 | G71: 198 | L71: 448 | M71: 56 | N71: 392 | O71: 370 | P71: 78 | Q71: 398 | R71: -28 | S71: 327 | T71: 397 | U71: 425 | V71: 0 | W71: 8
A72: 建瓯市 | B72: 1633 | C72: 1780 | D72: 1633 | E72: 1780 | F72: 0 | G72: 0 | L72: 358 | M72: 0 | N72: 358 | O72: 286 | P72: 72 | Q72: 441 | R72: -155 | S72: 299 | T72: 281 | U72: 436 | V72: 0 | W72: 8
A73: 龙岩市小计 | B73: =SUM(B74:B81) -> 19068 | C73: 20568 | D73: 17947 | E73: 19410 | F73: 1121 | G73: 1158 | H73: 0 | I73: 0 | J73: 0 | K73: 0 | L73: 4196 | M73: 273 | N73: 3923 | O73: 2782 | P73: 1414 | Q73: 2557 | R73: 225 | S73: =SUM(S74:S81) -> 2617 | T73: 2795 | U73: 3047 | V73: 477
A74: 龙岩市本级 | B74: 4572 | C74: 4693 | D74: =B74-F74-H74-J74 -> 3451 | E74: =C74-G74-I74-K74 -> 3535 | F74: 1121 | G74: 1158 | L74: =M74+N74 -> 1007 | M74: =ROUND((F74+G74)*0.12,0) -> 273 | N74: =ROUND(((D74+E74)*0.21+(H74+I74)*0.3+(J74+K74)*0.36)/2,0) -> 734 | O74: =ROUND(N74*W74/10+M74,0) -> 567 | P74: =L74-O74 -> 440 | Q74: 634 | R74: =O74-Q74 -> -67 | S74: =ROUND(((E74)*0.21+(I74)*0.3+(K74)*0.36)*W74/10,0) -> 297 | T74: 660 | U74: =T74-R74 -> 727 | V74: 0 | W74: 4
A75: 新罗区 | B75: 3898 | C75: 4124 | D75: 3898 | E75: 4124 | F75: 0 | G75: 0 | L75: 842 | M75: 0 | N75: 842 | O75: 337 | P75: 505 | Q75: 316 | R75: 21 | S75: 346 | T75: 341 | U75: 346 | V75: =S75+R75-T75 -> 26 | W75: 4 | X75: =U75=S75 -> TRUE
A76: 长汀县 | B76: 2577 | C76: 2624 | D76: 2577 | E76: 2624 | F76: 0 | G76: 0 | L76: 546 | M76: 0 | N76: 546 | O76: 437 | P76: 109 | Q76: 408 | R76: 29 | S76: 441 | T76: 446 | U76: 441 | V76: 24 | W76: 8 | X76: TRUE
A77: 永定区 | B77: 1152 | C77: 1473 | D77: 1152 | E77: 1473 | F77: 0 | G77: 0 | L77: 276 | M77: 0 | N77: 276 | O77: 221 | P77: 55 | Q77: 138 | R77: 83 | S77: 247 | T77: 173 | U77: 247 | V77: 157 | W77: 8 | X77: TRUE
A78: 上杭县 | B78: 2764 | C78: 3091 | D78: 2764 | E78: 3091 | F78: 0 | G78: 0 | L78: 615 | M78: 0 | N78: 615 | O78: 492 | P78: 123 | Q78: 423 | R78: 69 | S78: 519 | T78: 468 | U78: 519 | V78: 120 | W78: 8 | X78: TRUE
A79: 武平县 | B79: 1720 | C79: 1964 | D79: 1720 | E79: 1964 | F79: 0 | G79: 0 | L79: 387 | M79: 0 | N79: 387 | O79: 310 | P79: 77 | Q79: 268 | R79: 42 | S79: 330 | T79: 297 | U79: 330 | V79: 75 | W79: 8 | X79: TRUE
A80: 连城县 | B80: 976 | C80: 1052 | D80: 976 | E80: 1052 | F80: 0 | G80: 0 | L80: 213 | M80: 0 | N80: 213 | O80: 170 | P80: 43 | Q80: 157 | R80: 13 | S80: 177 | T80: 170 | U80: 177 | V80: 20 | W80: 8 | X80: TRUE
A81: 漳平市 | B81: 1409 | C81: 1547 | D81: 1409 | E81: 1547 | F81: 0 | G81: 0 | L81: 310 | M81: 0 | N81: 310 | O81: 248 | P81: 62 | Q81: 213 | R81: 35 | S81: 260 | T81: 240 | U81: 260 | V81: 55 | W81: 8 | X81: TRUE
A82: 宁德市小计 | B82: =SUM(B83:B92) -> 18790 | C82: 21536 | D82: 17307 | E82: 20343 | F82: 906 | G82: 877 | H82: 577 | I82: 316 | J82: 0 | K82: 0 | L82: 4299 | M82: 213 | N82: 4086 | O82: 3391 | P82: 908 | Q82: 2845 | R82: 546 | S82: =SUM(S83:S92) -> 3411 | T82: 3147 | U82: 3735 | V82: 1134
A83: 宁德市本级 | B83: 2303 | C83: 1930 | D83: =B83-F83-H83-J83 -> 1541 | E83: =C83-G83-I83-K83 -> 1537 | F83: 185 | G83: 77 | H83: 577 | I83: 316 | L83: =M83+N83 -> 488 | M83: =ROUND((F83+G83)*0.12,0) -> 31 | N83: =ROUND(((D83+E83)*0.21+(H83+I83)*0.3+(J83+K83)*0.36)/2,0) -> 457 | O83: =ROUND(N83*W83/10+M83,0) -> 305 | P83: =L83-O83 -> 183 | Q83: 483 | R83: =O83-Q83 -> -178 | S83: =ROUND(((E83)*0.21+(I83)*0.3+(K83)*0.36)*W83/10,0) -> 251 | T83: 396 | U83: =T83-R83 -> 574 | V83: 0 | W83: 6
A84: 蕉城区 | B84: 1716 | C84: 1743 | D84: 1716 | E84: 1743 | F84: 0 | G84: 0 | L84: 363 | M84: 0 | N84: 363 | O84: 290 | P84: 73 | Q84: 282 | R84: 8 | S84: 293 | T84: 302 | U84: =T84-R84 -> 294 | V84: 0 | W84: 8
A85: 霞浦县 | B85: 1740 | C85: 2206 | D85: 1740 | E85: 2206 | F85: 0 | G85: 0 | L85: 414 | M85: 0 | N85: 414 | O85: 331 | P85: 83 | Q85: 225 | R85: 106 | S85: 371 | T85: 274 | U85: 371 | V85: =S85+R85-T85 -> 203 | W85: 8 | X85: =U85=S85 -> TRUE
A86: 古田县 | B86: 952 | C86: 1109 | D86: 952 | E86: 1109 | F86: 0 | G86: 0 | L86: 216 | M86: 0 | N86: 216 | O86: 173 | P86: 43 | Q86: 144 | R86: 29 | S86: 186 | T86: 160 | U86: 186 | V86: 55 | W86: 8 | X86: TRUE
A87: 屏南县 | B87: 997 | C87: 1242 | D87: 997 | E87: 1242 | F87: 0 | G87: 0 | L87: 235 | M87: 0 | N87: 235 | O87: 188 | P87: 47 | Q87: 145 | R87: 43 | S87: 209 | T87: 169 | U87: 209 | V87: 83 | W87: 8 | X87: TRUE
A88: 寿宁县 | B88: 852 | C88: 1046 | D88: 852 | E88: 1046 | F88: 0 | G88: 0 | L88: 199 | M88: 0 | N88: 199 | O88: 159 | P88: 40 | Q88: 112 | R88: 47 | S88: 176 | T88: 133 | U88: 176 | V88: 90 | W88: 8 | X88: TRUE
A89: 周宁县 | B89: 1239 | C89: 1349 | D89: 1239 | E89: 1349 | F89: 0 | G89: 0 | L89: 272 | M89: 0 | N89: 272 | O89: 218 | P89: 54 | Q89: 186 | R89: 32 | S89: 227 | T89: 208 | U89: 227 | V89: 51 | W89: 8 | X89: TRUE
A90: 柘荣县 | B90: 1333 | C90: 1737 | D90: 1333 | E90: 1737 | F90: 0 | G90: 0 | L90: 322 | M90: 0 | N90: 322 | O90: 258 | P90: 64 | Q90: 159 | R90: 99 | S90: 292 | T90: 202 | U90: 292 | V90: 189 | W90: 8 | X90: TRUE
A91: 福安市 | B91: 5013 | C91: 5888 | D91: 4718 | E91: 5622 | F91: 295 | G91: 266 | L91: 1153 | M91: 67 | N91: 1086 | O91: 936 | P91: 217 | Q91: 719 | R91: 217 | S91: 944 | T91: 842 | U91: 944 | V91: 319 | W91: 8 | X91: TRUE
A92: 福鼎市 | B92: 2645 | C92: 3286 | D92: 2219 | E92: 2752 | F92: 426 | G92: 534 | L92: 637 | M92: 115 | N92: 522 | O92: 533 | P92: 104 | Q92: 390 | R92: 143 | S92: 462 | T92: 461 | U92: 462 | V92: 144 | W92: 8 | X92: TRUE
A93: 平潭综合实验区 | B93: 1415 | C93: 1698 | D93: 1415 | E93: 1698 | F93: 0 | G93: 0 | L93: 327 | M93: 0 | N93: 327 | O93: 262 | P93: 65 | Q93: 196 | R93: 66 | S93: 285 | T93: 234 | U93: 285 | V93: 117 | W93: 8 | X93: TRUE

Sheet 教育助学金过渡表 (hidden)
A1: 2022年市、县（区）中等职业学校学生国家助学金明细表（教育部门）
A2: 市、县（区） | B2: 2022年春季学期人数 | C2: 2022年秋季学期人数 | D2: 分担比例 | E2: 助学金分担情况 | H2: 闽财教指〔2022〕48号 | I2: 结余资金(负数为有结余） | J2: 应下达（按秋季学期测算） | K2: 已下达 | L2: 2023年可用资金 | M2: 本次下达
E4: 合计 | F4: 省级 | G4: 市县区
A5: 总计 | B5: =B6+B19+B26+B37+B50+B63+B74+B83+B94 -> 15352 | C5: 15301 | E5: 3065.3 | F5: 1699.44 | G5: 1365.86 | H5: 2230 | J5: =J6+J19+J26+J37+J50+J63+J74+J83+J94 -> 1680.92 | K5: 2093 | L5: 2858.58 | M5: 185.00 | N5: 170.70
A6: 福州市小计 | B6: =SUM(B7:B18) -> 1731 | C6: 1732 | E6: 346.3 | F6: 135.98 | G6: 210.32 | H6: 281 | J6: =SUM(J7:J18) -> 137.04 | K6: 262 | L6: 410.02 | M6: 3 | N6: 1.6
A7: 福州市本级 | B7: 448 | C7: 391 | D7: 2 | E7: =ROUND((B7+C7)*0.1,2) -> 83.9 | F7: =ROUND(E7*D7/10,2) -> 16.78 | G7: =E7-F7 -> 67.12 | H7: 63 | I7: =F7-H7 -> -46.22 | J7: =ROUND((C7)*0.2*D7/10,2) -> 15.64 | K7: 51 | L7: =K7-I7+M7 -> 97.22 | N7: 0
A8: 台江区 | B8: 19 | C8: 15 | D8: 2 | E8: 3.4 | F8: 0.68 | G8: 2.72 | H8: 2 | I8: -1.32 | J8: 0.6 | K8: 2 | L8: 3.32 | N8: 0
A9: 仓山区 | B9: 271 | C9: 321 | D9: 2 | E9: 59.2 | F9: 11.84 | G9: 47.36 | H9: 14 | I9: -2.16 | J9: 12.84 | K9: 15 | L9: 17.16 | N9: 0
A10: 马尾区 | B10: 67 | C10: 58 | D10: 2 | E10: 12.5 | F10: 2.5 | G10: 10 | H10: 7 | I10: -4.5 | J10: 2.32 | K10: 5 | L10: 9.5 | N10: 0
A11: 闽侯县 | B11: 112 | C11: 111 | D11: 4 | E11: 22.3 | F11: 8.92 | G11: 13.38 | H11: 15 | I11: -6.08 | J11: 8.88 | K11: 13 | L11: 19.08 | N11: 0
A12: 连江县 | B12: 120 | C12: 115 | D12: 6 | E12: 23.5 | F12: 14.1 | G12: 9.4 | H12: 27 | I12: -12.9 | J12: 13.8 | K12: 23 | L12: 35.9 | N12: 0
A13: 罗源县 | B13: 126 | C13: 138 | D13: 6 | E13: 26.4 | F13: 15.84 | G13: 10.56 | H13: 16 | I13: -0.16 | J13: 16.56 | K13: 16 | L13: 17.16 | M13: =ROUNDUP(N13,0) -> 1 | N13: =J13+I13-K13 -> 0.4
A14: 闽清县 | B14: 126 | C14: 138 | D14: 8 | E14: 26.4 | F14: 21.12 | G14: 5.28 | H14: 19 | I14: 2.12 | J14: 22.08 | K14: 23 | L14: 22.88 | M14: =ROUNDUP(N14,0) -> 2 | N14: =J14+I14-K14 -> 1.2
A15: 永泰县 | B15: 109 | C15: 109 | D15: 8 | E15: 21.8 | F15: 17.44 | G15: 4.36 | H15: 22 | I15: -4.56 | J15: 17.44 | K15: 22 | L15: 26.56 | N15: 0
A16: 福清市 | B16: 203 | C16: 218 | D16: 4 | E16: 42.1 | F16: 16.84 | G16: 25.26 | H16: 66 | I16: -49.16 | J16: 17.44 | K16: 62 | L16: 111.16 | N16: 0
A17: 长乐区 | B17: 115 | C17: 96 | D17: 4 | E17: 21.1 | F17: 8.44 | G17: 12.66 | H17: 24 | I17: -15.56 | J17: 7.68 | K17: 24 | L17: 39.56 | N17: 0
A18: 福州高新技术产业开发区 | B18: 15 | C18: 22 | D18: 4 | E18: 3.7 | F18: 1.48 | G18: 2.22 | H18: 6 | I18: -4.52 | J18: 1.76 | K18: 6 | L18: 10.52 | N18: 0
A19: 莆田市小计 | B19: =SUM(B20:B25) -> 1074 | C19: 999 | E19: 207.3 | F19: 132.52 | G19: 74.78 | H19: 218 | J19: =SUM(J20:J25) -> 128.52 | K19: 203 | L19: 319.06 | M19: 16 | N19: 15.24
A20: 莆田市本级 | B20: 479 | C20: 337 | D20: 6 | E20: =ROUND((B20+C20)*0.1,2) -> 81.6 | F20: =ROUND(E20*D20/10,2) -> 48.96 | G20: =E20-F20 -> 32.64 | H20: 128 | I20: =F20-H20 -> -79.04 | J20: =ROUND((C20)*0.2*D20/10,2) -> 40.44 | K20: 104 | L20: =K20-I20+M20 -> 183.04 | N20: 0
A21: 城厢区 | B21: 116 | C21: 127 | D21: 6 | E21: 24.3 | F21: 14.58 | G21: 9.72 | H21: 0 | I21: 0 | J21: 15.24 | K21: 0 | L21: 16 | M21: =ROUNDUP(N21,0) -> 16 | N21: 15.24 | O21: 助学金原从历年结余中安排使用，2022年省级已使用完毕
A22: 涵江区 | B22: 119 | C22: 136 | D22: 6 | E22: 25.5 | F22: 15.3 | G22: 10.2 | H22: 24 | I22: -8.7 | J22: 16.32 | K22: 29 | L22: 37.7 | N22: 0
A23: 荔城区 | B23: 71 | C23: 61 | D23: 6 | E23: 13.2 | F23: 7.92 | G23: 5.28 | H23: 12 | I23: -4.08 | J23: 7.32 | K23: 13 | L23: 17.08 | N23: 0
A24: 秀屿区 | B24: 98 | C24: 122 | D24: 6 | E24: 22 | F24: 13.2 | G24: 8.8 | H24: 19 | I24: -5.8 | J24: 14.64 | K24: 15 | L24: 20.8 | N24: 0
A25: 仙游县 | B25: 191 | C25: 216 | D25: 8 | E25: 40.7 | F25: 32.56 | G25: 8.14 | H25: 35 | I25: -2.44 | J25: 34.56 | K25: 42 | L25: 44.44 | N25: 0
A26: 三明市小计 | B26: =SUM(B27:B36) -> 1259 | C26: 1346 | E26: 260.5 | F26: 172.38 | G26: 88.12 | H26: 172 | J26: =SUM(J27:J36) -> 179.96 | K26: 196 | L26: 228.62 | M26: 33 | N26: 29.68
A27: 三明市本级 | B27: 300 | C27: 291 | D27: 6 | E27: =ROUND((B27+C27)*0.1,2) -> 59.1 | F27: =ROUND(E27*D27/10,2) -> 35.46 | G27: =E27-F27 -> 23.64 | H27: 56 | I27: =F27-H27 -> -20.54 | J27: =ROUND((C27)*0.2*D27/10,2) -> 34.92 | K27: 50 | L27: =K27-I27+M27 -> 70.54 | N27: 0
A28: 明溪县 | B28: 28 | C28: 42 | D28: 8 | E28: 7 | F28: 5.6 | G28: 1.4 | H28: 3 | I28: 2.6 | J28: 6.72 | K28: 5 | L28: 7.4 | M28: =ROUNDUP(N28,0) -> 5 | N28: =J28+I28-K28 -> 4.32
A29: 清流县 | B29: 47 | C29: 50 | D29: 8 | E29: 9.7 | F29: 7.76 | G29: 1.94 | H29: 8 | I29: -0.24 | J29: 8 | K29: 8 | L29: 8.24 | N29: 0
A30: 大田县 | B30: 284 | C30: 362 | D30: 8 | E30: 64.6 | F30: 51.68 | G30: 12.92 | H30: 38 | I30: 13.68 | J30: 57.92 | K30: 55 | L30: 58.32 | M30: 17 | N30: 16.6
A31: 尤溪县 | B31: 108 | C31: 108 | D31: 8 | E31: 21.6 | F31: 17.28 | G31: 4.32 | H31: 17 | I31: 0.28 | J31: 17.28 | K31: 18 | L31: 17.72 | N31: 0
A32: 沙县区 | B32: 0 | C32: 10 | D32: 8 | E32: 1 | F32: 0.8 | G32: 0.2 | H32: 0 | I32: 0.8 | J32: 1.6 | K32: 0 | L32: 2.2 | M32: 3 | N32: 2.4
A33: 将乐县 | B33: 98 | C33: 98 | D33: 8 | E33: 19.6 | F33: 15.68 | G33: 3.92 | H33: 11 | I33: 4.68 | J33: 15.68 | K33: 16 | L33: 16.32 | M33: 5 | N33: 4.36
A34: 泰宁县 | B34: 49 | C34: 50 | D34: 8 | E34: 9.9 | F34: 7.92 | G34: 1.98 | H34: 7 | I34: 0.92 | J34: 8 | K34: 8 | L34: 8.08 | M34: 1 | N34: 0.92
A35: 建宁县 | B35: 37 | C35: 38 | D35: 8 | E35: 7.5 | F35: 6 | G35: 1.5 | H35: 5 | I35: 1 | J35: 6.08 | K35: 6 | L35: 7 | M35: 2 | N35: 1.08
A36: 永安市 | B36: 308 | C36: 297 | D36: 4 | E36: 60.5 | F36: 24.2 | G36: 36.3 | H36: 27 | I36: -2.8 | J36: 23.76 | K36: 30 | L36: 32.8 | N36: 0
A37: 泉州市小计 | B37: =SUM(B38:B49) -> 3927 | C37: 3734 | E37: 766.1 | F37: 299.22 | G37: 466.88 | H37: 356 | J37: =SUM(J38:J49) -> 300 | K37: 425 | L37: 500 | M37: 18 | N37: 16
A38: 泉州市本级 | B38: 941 | C38: 862 | D38: 2 | E38: =ROUND((B38+C38)*0.1,2) -> 180.3 | F38: =ROUND(E38*D38/10,2) -> 36.06 | G38: =E38-F38 -> 144.24 | H38: 36 | I38: =F38-H38 -> 0.06 | J38: =ROUND((C38)*0.2*D38/10,2) -> 34.48 | K38: 65 | L38: =K38-I38+M38 -> 64.94 | N38: 0
A39: 鲤城区 | B39: 43 | C39: 30 | D39: 2 | E39: 7.3 | F39: 1.46 | G39: 5.84 | H39: 3 | I39: -1.54 | J39: 1.2 | K39: 4 | L39: 5.54 | N39: 0
A40: 丰泽区 | B40: 352 | C40: 282 | D40: 2 | E40: 63.4 | F40: 12.68 | G40: 50.72 | H40: 27 | I40: -14.32 | J40: 11.28 | K40: 25 | L40: 39.32 | N40: 0
A41: 泉港区 | B41: 55 | C41: 98 | D41: 2 | E41: 15.3 | F41: 3.06 | G41: 12.24 | H41: 3 | I41: 0.06 | J41: 3.92 | K41: 1 | L41: 3.94 | M41: =ROUNDUP(N41,0) -> 3 | N41: =J41+I41-K41 -> 2.98
A42: 惠安县 | B42: 344 | C42: 308 | D42: 4 | E42: 65.2 | F42: 26.08 | G42: 39.12 | H42: 46 | I42: -19.92 | J42: 24.64 | K42: 42 | L42: 61.92 | N42: 0
A43: 安溪县 | B43: 468 | C43: 499 | D43: 8 | E43: 96.7 | F43: 77.36 | G43: 19.34 | H43: 65 | I43: 12.36 | J43: 79.84 | K43: 84 | L43: 80.64 | M43: 9 | N43: 8.2
A44: 永春县 | B44: 122 | C44: 127 | D44: 8 | E44: 24.9 | F44: 19.92 | G44: 4.98 | H44: 21 | I44: -1.08 | J44: 20.32 | K44: 23 | L44: 24.08 | N44: 0
A45: 德化县 | B45: 127 | C45: 162 | D45: 8 | E45: 28.9 | F45: 23.12 | G45: 5.78 | H45: 19 | I45: 4.12 | J45: 25.92 | K45: 25 | L45: 26.88 | M45: 6 | N45: 5.04
A46: 石狮市 | B46: 124 | C46: 126 | D46: 2 | E46: 25 | F46: 5 | G46: 20 | H46: 8 | I46: -3 | J46: 5.04 | K46: 9 | L46: 12 | N46: 0
A47: 晋江市 | B47: 737 | C47: 603 | D47: 2 | E47: 134 | F47: 26.8 | G47: 107.2 | H47: 40 | I47: -13.2 | J47: 24.12 | K47: 41 | L47: 54.2 | N47: 0
A48: 南安市 | B48: 422 | C48: 460 | D48: 6 | E48: 88.2 | F48: 52.92 | G48: 35.28 | H48: 75 | I48: -22.08 | J48: 55.2 | K48: 83 | L48: 105.08 | N48: 0
A49: 泉州市台商投资区 | B49: 192 | C49: 177 | D49: 4 | E49: 36.9 | F49: 14.76 | G49: 22.14 | H49: 13 | I49: 1.76 | J49: 14.16 | K49: 23 | L49: 21.24 | N49: 0
A50: 漳州市小计 | B50: =SUM(B51:B62) -> 1943 | C50: 2007 | E50: 395 | F50: 212.08 | G50: 182.92 | H50: 354 | J50: =SUM(J51:J62) -> 189 | K50: 266 | L50: 433 | M50: 2 | N50: 2
A51: 漳州市本级 | B51: 1123 | C51: 1139 | D51: 4 | E51: =ROUND((B51+C51)*0.1,2) -> 226.2 | F51: =ROUND(E51*D51/10,2) -> 90.48 | G51: =E51-F51 -> 135.72 | H51: 112 | I51: =F51-H51 -> -21.52 | J51: =ROUND((C51)*0.2*D51/10,2) -> 91.12 | K51: 126 | L51: =K51-I51+M51 -> 147.52 | N51: 0
A52: 芗城区 | B52: 11 | C52: 9 | D52: 4 | E52: 2 | F52: 0.8 | G52: 1.2 | H52: 2 | I52: -1.2 | J52: 0.72 | K52: 2 | L52: 3.2 | N52: 0
A53: 云霄县 | B53: 126 | C53: 168 | D53: 8 | E53: 29.4 | F53: 23.52 | G53: 5.88 | H53: 0 | I53: 0 | J53: 0 | K53: 0 | L53: 0 | N53: 0 | O53: 助学金从历年结余中安排使用
A54: 漳浦县 | B54: 91 | C54: 81 | D54: 8 | E54: 17.2 | F54: 13.76 | G54: 3.44 | H54: 26 | I54: -12.24 | J54: 12.96 | K54: 26 | L54: 38.24 | N54: 0
A55: 诏安县 | B55: 142 | C55: 117 | D55: 8 | E55: 25.9 | F55: 20.72 | G55: 5.18 | H55: 20 | I55: 0.72 | J55: 18.72 | K55: 26 | L55: 25.28 | N55: 0
A56: 长泰区 | B56: 34 | C56: 44 | D56: 6 | E56: 7.8 | F56: 4.68 | G56: 3.12 | H56: 4 | I56: 0.68 | J56: 5.28 | K56: 4 | L56: 5.32 | M56: =ROUNDUP(N56,0) -> 2 | N56: =J56+I56-K56 -> 1.96
A57: 东山县 | B57: 48 | C57: 70 | D57: 8 | E57: 11.8 | F57: 9.44 | G57: 2.36 | H57: 9 | I57: 0.44 | J57: 11.2 | K57: 13 | L57: 12.56 | N57: 0
A58: 南靖县 | B58: 126 | C58: 127 | D58: 8 | E58: 25.3 | F58: 20.24 | G58: 5.06 | H58: 145 | I58: -124.76 | J58: 20.32 | K58: 27 | L58: 151.76 | N58: 0
A59: 平和县 | B59: 83 | C59: 77 | D59: 8 | E59: 16 | F59: 12.8 | G59: 3.2 | H59: 15 | I59: -2.2 | J59: 12.32 | K59: 16 | L59: 18.2 | N59: 0
A60: 华安县 | B60: 24 | C60: 33 | D60: 8 | E60: 5.7 | F60: 4.56 | G60: 1.14 | H60: 6 | I60: -1.44 | J60: 5.28 | K60: 6 | L60: 7.44 | N60: 0
A61: 龙海区 | B61: 83 | C61: 75 | D61: 4 | E61: 15.8 | F61: 6.32 | G61: 9.48 | H61: 11 | I61: -4.68 | J61: 6 | K61: 12 | L61: 16.68 | N61: 0
A62: 漳州市台商投资区 | B62: 52 | C62: 67 | D62: 4 | E62: 11.9 | F62: 4.76 | G62: 7.14 | H62: 4 | I62: 0.76 | J62: 5.36 | K62: 8 | L62: 7.24 | N62: 0
A63: 南平市小计 | B63: =SUM(B64:B73) -> 1268 | C63: 1356 | E63: 262.4 | F63: 190.38 | G63: 72.02 | H63: 296 | J63: =SUM(J64:J73) -> 197.32 | K63: 195 | L63: 308.62 | M63: 8 | N63: 7
A64: 南平市本级 | B64: 486 | C64: 491 | D64: 6 | E64: =ROUND((B64+C64)*0.1,2) -> 97.7 | F64: =ROUND(E64*D64/10,2) -> 58.62 | G64: =E64-F64 -> 39.08 | H64: 89 | I64: =F64-H64 -> -30.38 | J64: =ROUND((C64)*0.2*D64/10,2) -> 58.92 | K64: 63 | L64: =K64-I64+M64 -> 93.38 | N64: 0
A65: 延平区 | B65: 55 | C65: 43 | D65: 8 | E65: 9.8 | F65: 7.84 | G65: 1.96 | H65: 13 | I65: -5.16 | J65: 6.88 | K65: 8 | L65: 13.16 | N65: 0
A66: 顺昌县 | B66: 64 | C66: 88 | D66: 8 | E66: 15.2 | F66: 12.16 | G66: 3.04 | H66: 14 | I66: -1.84 | J66: 14.08 | K66: 9 | L66: 14.84 | M66: =ROUNDUP(N66,0) -> 4 | N66: =J66+I66-K66 -> 3.24
A67: 浦城县 | B67: 86 | C67: 85 | D67: 8 | E67: 17.1 | F67: 13.68 | G67: 3.42 | H67: 20 | I67: -6.32 | J67: 13.6 | K67: 10 | L67: 16.32 | N67: 0
A68: 光泽县 | B68: 113 | C68: 124 | D68: 8 | E68: 23.7 | F68: 18.96 | G68: 4.74 | H68: 36 | I68: -17.04 | J68: 19.84 | K68: 18 | L68: 35.04 | N68: 0
A69: 松溪县 | B69: 37 | C69: 45 | D69: 8 | E69: 8.2 | F69: 6.56 | G69: 1.64 | H69: 4 | I69: 2.56 | J69: 7.2 | K69: 6 | L69: 7.44 | M69: =ROUNDUP(N69,0) -> 4 | N69: =J69+I69-K69 -> 3.76
A70: 政和县 | B70: 45 | C70: 52 | D70: 8 | E70: 9.7 | F70: 7.76 | G70: 1.94 | H70: 12 | I70: -4.24 | J70: 8.32 | K70: 6 | L70: 10.24 | N70: 0
A71: 邵武市 | B71: 76 | C71: 79 | D71: 8 | E71: 15.5 | F71: 12.4 | G71: 3.1 | H71: 14 | I71: -1.6 | J71: 12.64 | K71: 15 | L71: 16.6 | N71: 0
A72: 武夷山市 | B72: 238 | C72: 285 | D72: 8 | E72: 52.3 | F72: 41.84 | G72: 10.46 | H72: 76 | I72: -34.16 | J72: 45.6 | K72: 40 | L72: 74.16 | N72: 0
A73: 建瓯市 | B73: 68 | C73: 64 | D73: 8 | E73: 13.2 | F73: 10.56 | G73: 2.64 | H73: 18 | I73: -7.44 | J73: 10.24 | K73: 20 | L73: 27.44 | N73: 0
A74: 龙岩市小计 | B74: =SUM(B75:B82) -> 2095 | C74: 2049 | E74: 414.4 | F74: 231.2 | G74: 183.2 | H74: 225 | J74: =SUM(J75:J82) -> 219.52 | K74: 216 | L74: 253.72 | M74: 32 | N74: 29.48
A75: 龙岩市本级 | B75: 1063 | C75: 955 | D75: 4 | E75: =ROUND((B75+C75)*0.1,2) -> 201.8 | F75: =ROUND(E75*D75/10,2) -> 80.72 | G75: =E75-F75 -> 121.08 | H75: 104 | I75: =F75-H75 -> -23.28 | J75: =ROUND((C75)*0.2*D75/10,2) -> 76.4 | K75: 80 | L75: =K75-I75+M75 -> 103.28 | N75: 0
A76: 新罗区 | B76: 243 | C76: 247 | D76: 4 | E76: 49 | F76: 19.6 | G76: 29.4 | H76: 22 | I76: -2.4 | J76: 19.76 | K76: 22 | L76: 24.4 | N76: 0
A77: 长汀县 | B77: 188 | C77: 203 | D77: 8 | E77: 39.1 | F77: 31.28 | G77: 7.82 | H77: 28 | I77: 3.28 | J77: 32.48 | K77: 30 | L77: 32.72 | M77: =ROUNDUP(N77,0) -> 6 | N77: =J77+I77-K77 -> 5.76
A78: 永定区 | B78: 136 | C78: 139 | D78: 8 | E78: 27.5 | F78: 22 | G78: 5.5 | H78: 9 | I78: 13 | J78: 22.24 | K78: 15 | L78: 23 | M78: 21 | N78: 20.24
A79: 上杭县 | B79: 173 | C79: 201 | D79: 8 | E79: 37.4 | F79: 29.92 | G79: 7.48 | H79: 29 | I79: 0.92 | J79: 32.16 | K79: 32 | L79: 33.08 | M79: 2 | N79: 1.08
A80: 武平县 | B80: 124 | C80: 127 | D80: 8 | E80: 25.1 | F80: 20.08 | G80: 5.02 | H80: 18 | I80: 2.08 | J80: 20.32 | K80: 20 | L80: 20.92 | M80: 3 | N80: 2.4
A81: 连城县 | B81: 73 | C81: 76 | D81: 8 | E81: 14.9 | F81: 11.92 | G81: 2.98 | H81: 0 | I81: 0 | J81: 0 | K81: 0 | L81: 0 | N81: 0 | O81: 助学金从历年结余中安排使用
A82: 漳平市 | B82: 95 | C82: 101 | D82: 8 | E82: 19.6 | F82: 15.68 | G82: 3.92 | H82: 15 | I82: =F82-H82 -> 0.68 | J82: =ROUND((C82)*0.2*D82/10,2) -> 16.16 | K82: 17 | L82: 16.32 | N82: 0
A83: 宁德市小计 | B83: =SUM(B84:B93) -> 1984 | C83: 2008 | E83: 399.2 | F83: 314.4 | G83: 84.8 | H83: 313 | J83: =SUM(J84:J93) -> 317.96 | K83: 313 | L83: 384.6 | M83: 73 | N83: 69.52
A84: 宁德市本级 | B84: 165 | C84: 83 | D84: 6 | E84: =ROUND((B84+C84)*0.1,2) -> 24.8 | F84: =ROUND(E84*D84/10,2) -> 14.88 | G84: =E84-F84 -> 9.92 | H84: 62 | I84: -47.12 | J84: 9.96 | K84: 24 | L84: =K84-I84+M84 -> 71.12 | N84: 0
A85: 蕉城区 | B85: 102 | C85: 116 | D85: 8 | E85: 21.8 | F85: 17.44 | G85: 4.36 | H85: 20 | I85: -2.56 | J85: 18.56 | K85: 18 | L85: 20.56 | N85: 0
A86: 霞浦县 | B86: 129 | C86: 153 | D86: 8 | E86: 28.2 | F86: 22.56 | G86: 5.64 | H86: 16 | I86: 6.56 | J86: 24.48 | K86: 22 | L86: 25.44 | M86: =ROUNDUP(N86,0) -> 10 | N86: =J86+I86-K86 -> 9.04
A87: 古田县 | B87: 77 | C87: 90 | D87: 8 | E87: 16.7 | F87: 13.36 | G87: 3.34 | H87: 10 | I87: 3.36 | J87: 14.4 | K87: 11 | L87: 14.64 | M87: 7 | N87: 6.76
A88: 屏南县 | B88: 83 | C88: 89 | D88: 8 | E88: 17.2 | F88: 13.76 | G88: 3.44 | H88: 11 | I88: 2.76 | J88: 14.24 | K88: 13 | L88: 14.24 | M88: 4 | N88: 4
A89: 寿宁县 | B89: 104 | C89: 100 | D89: 8 | E89: 20.4 | F89: 16.32 | G89: 4.08 | H89: 9 | I89: 7.32 | J89: 16 | K89: 11 | L89: 16.68 | M89: 13 | N89: 12.32
A90: 周宁县 | B90: 111 | C90: 111 | D90: 8 | E90: 22.2 | F90: 17.76 | G90: 4.44 | H90: 14 | I90: 3.76 | J90: 17.76 | K90: 14 | L90: 18.24 | M90: 8 | N90: 7.52
A91: 柘荣县 | B91: 127 | C91: 130 | D91: 8 | E91: 25.7 | F91: 20.56 | G91: 5.14 | H91: 13 | I91: 7.56 | J91: 20.8 | K91: 18 | L91: 21.44 | M91: 11 | N91: 10.36
A92: 福安市 | B92: 615 | C92: 595 | D92: 8 | E92: 121 | F92: 96.8 | G92: 24.2 | H92: 86 | I92: 10.8 | J92: 95.2 | K92: 94 | L92: 95.2 | M92: 12 | N92: 12
A93: 福鼎市 | B93: 471 | C93: 541 | D93: 8 | E93: 101.2 | F93: 80.96 | G93: 20.24 | H93: 72 | I93: 8.96 | J93: 86.56 | K93: 88 | L93: 87.04 | M93: 8 | N93: 7.52
A94: 平潭综合实验区 | B94: 71 | C94: 70 | D94: 8 | E94: 14.1 | F94: 11.28 | G94: 2.82 | H94: 15 | I94: -3.72 | J94: 11.2 | K94: 17 | L94: 20.72 | M94: 0 | N94: 0

Sheet 免学费（人社） (hidden)
A1: 附件3
A2: 提前下达2023年市、县（区）中等职业学校全日制学生免学费补助资金安排表
A3: 单位：人、万元
A4: 单位名称 | B4: 预计2023年中职免学费受助人数 | E4: 省级财政应承担资金 | I4: 备注
B5: 合计 | C5: 教育部门 | D5: 人社部门 | E5: 合计 | F5: 教育部门 | G5: 人社部门
G6: 2022年已提前下达的资金 | H6: 本次下达资金
A7: 01 | B7: 02 | C7: 03 | D7: 04 | E7: 05 | F7: 06 | G7: 07 | H7: 08 | I7: 09
A8: 合计 | C8: 0 | D8: =D9+D21+D33+D40+D54+D67+D76+D86 -> 83143 | E8: =G8 -> 6015 | F8: 0 | G8: =G9+G21+G33+G40+G54+G67+G76+G86 -> 6015 | H8: =H9+H21+H33+H40+H54++H67+H76+H86+H97 -> 105
A9: 福州市合计 | C9: 0 | D9: =SUM(D10) -> 27734 | E9: 1168 | G9: =SUM(G10) -> 1168 | H9: =SUM(H10:H20) -> 0
A10: 福州市属 | D10: 27734 | E10: 1168 | G10: 1168 | H10: 0 | I10: 2022年秋季学期累计结余696.5312万元，结转2023年度使用。
A11: 台江 | E11: 0
A12: 仓山 | E12: 0
A13: 马尾 | E13: 0
A14: 闽侯 | E14: 0
A15: 闽清 | E15: 0
A16: 福清 | E16: 0
A17: 永泰 | E17: 0
A18: 长乐 | E18: 0
A19: 连江 | E19: 0
A20: 罗源 | E20: 0
A21: 宁德市合计 | C21: 0 | D21: =SUM(D22:D32) -> 3596 | E21: 471 | F21: 0 | G21: =G22+G32 -> 471 | H21: =SUM(H22:H32) -> 32
A22: 宁德市属 | D22: 3532 | E22: 460 | G22: 460 | H22: 32 | J22: =G22-#REF! -> 
A23: 蕉城 | E23: 0
A24: 福安 | E24: 0
A25: 福鼎 | E25: 0
A26: 霞浦 | E26: 0
A27: 寿宁 | E27: 0
A28: 周宁 | E28: 0
A29: 屏南 | E29: 0
A30: 古田 | E30: 0
A31: 柘荣 | E31: 0
A32: 古田 | D32: 64 | E32: =G32 -> 11 | G32: 11
A33: 莆田市合计 | C33: 0 | D33: =D34 -> 3235 | E33: 410 | F33: 0 | G33: =G34 -> 410 | H33: =SUM(H34:H39) -> 0
A34: 莆田市属 | D34: 3235 | E34: 410 | G34: 410 | H34: 0 | I34: 2022年秋季学期累计结余34.56万元，结转2023年度使用。
A35: 荔城 | E35: 0
A36: 城厢 | E36: 0
A37: 涵江 | E37: 0
A38: 秀屿 | E38: 0
A39: 仙游 | E39: 0
A40: 泉州市合计 | C40: 0 | D40: =D41+D53 -> 14072 | E40: =G40 -> 614 | F40: 0 | G40: =G41+G53 -> 614 | H40: =SUM(H41:H53) -> 0
A41: 泉州市属 | D41: 13589 | E41: =G41 -> 573 | G41: 573 | H41: 0
A42: 鲤城 | E42: 0
A43: 丰泽 | E43: 0
A44: 洛江 | E44: 0
A45: 泉州台商投资区 | E45: 0
A46: 晋江 | E46: 0
A47: 惠安 | E47: 0
A48: 南安 | E48: 0
A49: 安溪 | E49: 0
A50: 永春 | E50: 0
A51: 德化 | E51: 0
A52: 石狮 | E52: 0
A53: 惠安 | D53: 483 | G53: 41
A54: 漳州市合计 | C54: 0 | D54: =D55+D56+D63 -> 11258 | E54: =G54 -> 971 | F54: 0 | G54: =G55+G56+G63 -> 971 | H54: =SUM(H55:H66) -> 71
A55: 漳州市属 | D55: 4272 | E55: 332 | G55: 364
A56: 漳州台商投资区 | D56: 6800 | E56: =G56 -> 575 | G56: 575 | H56: 71
A57: 龙海 | E57: 0
A58: 长泰 | E58: 0
A59: 漳浦 | E59: 0
A60: 华安 | E60: 0
A61: 东山 | E61: 0
A62: 云霄 | E62: 0
A63: 平和 | D63: 186 | E63: =G63 -> 32 | G63: 32 | J63: =G63-#REF! -> 
A64: 诏安 | E64: 0
A65: 龙文 | E65: 0
A66: 南靖 | E66: 0
A67: 龙岩市合计 | C67: 0 | D67: =D68 -> 14650 | E67: 1268 | F67: 0 | G67: =G68 -> 1268 | H67: 0
A68: 龙岩市属 | D68: 14650 | E68: 1268 | G68: 1268 | H68: 0
A69: 新罗 | E69: 0
A70: 永定 | E70: 0
A71: 上杭 | E71: 0
A72: 武平 | E72: 0
A73: 长汀 | E73: 0
A74: 连城 | E74: 0
A75: 漳平 | E75: 0
A76: 三明市合计 | C76: 0 | D76: =D77 -> 3711 | E76: =G76 -> 469 | F76: 0 | G76: =G77 -> 469 | H76: =SUM(H77:H85) -> 2
A77: 三明市属 | D77: 3711 | E77: =G77 -> 469 | G77: 469 | H77: 2
A78: 尤溪 | E78: 0
A79: 将乐 | E79: 0
A80: 泰宁 | E80: 0
A81: 建宁 | E81: 0
A82: 清流 | E82: 0
A83: 明溪 | E83: 0
A84: 永安 | E84: 0
A85: 大田 | E85: 0
A86: 南平市合计 | C86: 0 | D86: =D87+D89 -> 4887 | E86: 566 | F86: 0 | G86: =G87+G89 -> 644 | H86: =SUM(H87:H89) -> 0
A87: 南平市属 | D87: 4341 | E87: 524 | G87: 552 | H87: 0 | I87: 2022年秋季学期累计结余56.98万元，结转2023年度使用。
A88: 延平 | E88: 0
A89: 建瓯 | D89: 546 | E89: 42 | G89: 92 | H89: 0 | I89: 2022年秋季学期累计结余32.245万元，结转2023年度使用。 | J89: =G89-#REF! -> 
A90: 顺昌 | E90: 0
A91: 邵武 | E91: 0
A92: 光泽 | E92: 0
A93: 武夷山 | E93: 0
A94: 浦城 | E94: 0
A95: 松溪 | E95: 0
A96: 政和 | E96: 0
A97: 平潭综合实验区 | E97: 0 | H97: 0

Sheet 助学金（人社） (hidden)
A1: 附件4
A2: 下达2023年市、县（区）中等职业学校全日制学生国家助学金资金安排表
A3: 单位:人、万元
A4: 单位名称 | B4: 2023年预计受助学生数 | E4: 省级财政下达资金 | I4: 备注
B5: 合计 | C5: 教育部门 | D5: 人社部门 | E5: 合计 | F5: 教育部门 | G5: 人社部门
G6: 2022年已提前下达资金 | H6: 本次下达资金
A7: 01 | B7: 02 | C7: 03 | D7: 04 | E7: 05 | F7: 06 | G7: 07 | H7: 8 | I7: 09
A8: 合计 | B8: =B9+B21+B32+B39+B52+B64+B73+B83+B94 -> 6765 | C8: 0 | D8: 6765 | E8: 470 | F8: 0 | G8: =G9+G21+G32+G39+G52+G64+G73+G83 -> 470 | H8: =H9+H21+H32+H39+H52+H64+H73+H83+H94 -> -77
A9: 福州市合计 | B9: =SUM(B10:B20) -> 2111 | C9: 0 | D9: 2111 | E9: 84 | F9: 0 | G9: 84 | H9: -77
A10: 福州市属 | B10: =C10+D10 -> 2111 | D10: 2111 | E10: =F10+G10 -> 84 | G10: 84 | H10: -77 | I10: 22秋学期累计结余89.382万元，结转23年使用。另外市局申请退回77万元，目前该指标已由市财政直接退回省财政。
A11: 台江 | B11: =C11+D11 -> 0 | E11: 0
A12: 仓山 | B12: 0 | E12: 0
A13: 马尾 | B13: 0 | E13: 0
A14: 闽侯 | B14: 0 | E14: 0
A15: 闽清 | B15: 0 | E15: 0
A16: 福清 | B16: 0 | E16: 0
A17: 永泰 | B17: 0 | E17: 0
A18: 长乐 | B18: 0 | E18: =F18+G18 -> 0
A19: 连江 | B19: 0 | E19: 0
A20: 罗源 | B20: 0 | E20: 0
A21: 宁德市合计 | B21: =SUM(B22:B31) -> 312 | C21: 0 | D21: 312 | E21: 38 | F21: 0 | G21: 38 | H21: 0
A22: 宁德市属 | B22: =C22+D22 -> 306 | D22: 306 | E22: =F22+G22 -> 37 | G22: 37 | H22: 0 | I22: 22秋学期累计结余37.192万元，结转23年使用。
A23: 蕉城 | B23: 0 | E23: 0
A24: 福安 | B24: 0 | E24: 0
A25: 福鼎 | B25: 0 | E25: 0
A26: 霞浦 | B26: 0 | E26: 0
A27: 寿宁 | B27: 0 | E27: 0
A28: 周宁 | B28: 0 | E28: 0
A29: 屏南 | B29: 0 | E29: 0
A30: 古田 | B30: 6 | D30: 6 | E30: 1 | G30: 1
A31: 柘荣 | B31: 0 | E31: 0
A32: 莆田市合计 | B32: =SUM(B33:B38) -> 305 | C32: 0 | D32: 305 | E32: 37 | F32: 0 | G32: 37 | H32: 0
A33: 莆田市属 | B33: =C33+D33 -> 305 | D33: 305 | E33: =F33+G33 -> 37 | G33: 37 | H33: 0 | I33: 22秋季学期累计结余16.449万元，结转23年度使用。
A34: 荔城 | B34: 0 | E34: 0
A35: 城厢 | B35: 0 | E35: 0
A36: 涵江 | B36: 0 | E36: 0
A37: 秀屿 | B37: 0 | E37: 0
A38: 仙游 | B38: 0 | E38: 0
A39: 泉州市合计 | B39: =SUM(B40:B51) -> 1111 | C39: 0 | D39: 1111 | E39: 47 | F39: 0 | G39: 47 | H39: 0
A40: 泉州市属 | B40: =C40+D40 -> 1045 | D40: 1045 | E40: =F40+G40 -> 42 | G40: 42 | H40: 0
A41: 鲤城 | B41: 0 | E41: 0
A42: 丰泽 | B42: 0 | E42: 0
A43: 洛江 | B43: 0 | E43: 0
A44: 泉州台商投资区 | B44: 0 | E44: 0
A45: 晋江 | B45: 0 | E45: 0
A46: 惠安 | B46: 66 | D46: 66 | E46: 5 | G46: 5
A47: 南安 | B47: 0 | E47: 0
A48: 安溪 | B48: 0 | E48: 0
A49: 永春 | B49: 0 | E49: 0
A50: 德化 | B50: 0 | E50: 0
A51: 石狮 | B51: 0 | E51: 0
A52: 漳州市合计 | B52: =SUM(B53:B63) -> 917 | C52: 0 | D52: 917 | E52: 74 | F52: 0 | G52: =G53+G54+G61 -> 74 | H52: =SUM(H53:H63) -> 0
A53: 漳州市属 | B53: =C53+D53 -> 328 | D53: 328 | E53: =F53+G53 -> 26 | G53: 26 | H53: 0
A54: 漳州台商投资区 | B54: 575 | D54: 575 | E54: 46 | G54: 46 | H54: 0 | I54: 22秋季学期累计结余21.736万元，结转23年度使用。
A55: 龙海 | B55: 0 | E55: 0
A56: 长泰 | B56: 0 | E56: 0
A57: 漳浦 | B57: 0 | E57: 0
A58: 华安 | B58: 0 | E58: 0
A59: 东山 | B59: 0 | E59: 0
A60: 云霄 | B60: 0 | E60: 0
A61: 平和 | B61: 14 | D61: 14 | E61: 2 | G61: 2 | H61: 0 | I61: 22秋季学期累计结余1.69万元，结转23年度使用。
A62: 诏安 | B62: 0 | E62: 0
A63: 南靖 | B63: 0 | E63: 0
A64: 龙岩市合计 | B64: =SUM(B65:B72) -> 1305 | C64: 0 | D64: 1305 | E64: 104 | F64: 0 | G64: =G65 -> 104 | H64: =SUM(H65:H72) -> 0
A65: 龙岩市属 | B65: =C65+D65 -> 1305 | D65: 1305 | E65: =F65+G65 -> 104 | G65: 104 | H65: 0
A66: 新罗 | B66: 0 | E66: 0
A67: 永定 | B67: 0 | E67: 0
A68: 上杭 | B68: 0 | E68: 0
A69: 武平 | B69: 0 | E69: 0
A70: 长汀 | B70: 0 | E70: 0
A71: 连城 | B71: 0 | E71: 0
A72: 漳平 | B72: 0 | E72: 0
A73: 三明市合计 | B73: =SUM(B74:B82) -> 299 | C73: 0 | D73: 299 | E73: 36 | F73: 0 | G73: =SUM(G74) -> 36 | H73: =SUM(H74:H82) -> 0
A74: 三明市属 | B74: =C74+D74 -> 299 | D74: 299 | E74: =F74+G74 -> 36 | G74: 36 | H74: 0 | I74: 22秋季学期累计结余133.312万元，结转23年度使用。
A75: 尤溪 | B75: 0 | E75: 0
A76: 将乐 | B76: 0 | E76: 0
A77: 泰宁 | B77: 0 | E77: 0
A78: 建宁 | B78: 0 | E78: 0
A79: 清流 | B79: 0 | E79: 0
A80: 明溪 | B80: 0 | E80: 0
A81: 永安 | B81: 0 | E81: 0 | H81: 0 | I81: 22秋季学期累计结余1.08万元，结转23年度使用。
A82: 大田 | B82: 0 | E82: 0
A83: 南平市合计 | B83: =SUM(B84:B93) -> 405 | C83: 0 | D83: 405 | E83: 50 | F83: 0 | G83: =SUM(G84:G86) -> 50 | H83: =SUM(H84:H93) -> 0
A84: 南平市属 | B84: =C84+D84 -> 360 | D84: 360 | E84: =F84+G84 -> 43 | G84: 43 | H84: 0 | I84: 22秋季学期累计结余37.228万元，结转23年度使用。
A85: 延平 | B85: 0 | E85: 0
A86: 建瓯 | B86: 45 | D86: 45 | E86: 7 | G86: 7 | H86: 0 | I86: 22秋季学期累计结余15.599万元，结转23年度使用。
A87: 顺昌 | B87: 0 | E87: 0
A88: 邵武 | B88: 0 | E88: 0
A89: 光泽 | B89: 0 | E89: 0
A90: 武夷山 | B90: 0 | E90: 0
A91: 浦城 | B91: 0 | E91: 0
A92: 松溪 | B92: 0 | E92: 0
A93: 政和 | B93: 0 | E93: 0
A94: 平潭综合实验区 | B94: 0 | D94: 0 | E94: 0 | H94: 0

Sheet 人社测算 (hidden)
A1: 人社厅测算表
A2: 序 号 | B2: 属地 | C2: 学校名称 | D2: 学籍数 | H2: 免学费补助金 | L2: 省级分担比例 | M2: 省级财政承担金额 | N2: 2022年度已经提前下达2023年资金 | O2: 22年秋季学期累计结余 | P2: 本申请下达 | Q2: 本次取整下达 | R2: 备注
D3: 涉农专业 | E3: 数控等高级工专业 | F3: 一般专业 | G3: 合计 | H3: 涉农专业 | I3: 数控等高级工专业 | J3: 其他一般专业 | K3: 合计
D4: 1 | E4: 2 | F4: 3 | G4: 4=1+2+3 | H4: 5=1*0.24 | I4: 6=2* 0.32 | J4: 7=3* 0.21 | K4: 8=5+6+7 | L4: 9 | M4: 10=9*8*0.1
A5: 1 | B5: 福州 | C5: 福州第一技师学院 | D5: 0 | E5: 33 | F5: =48+2848 -> 2896 | G5: =D5+E5+F5 -> 2929 | H5: 0 | I5: =E5*0.32 -> 10.56 | J5: =F5*0.21 -> 608.16 | K5: =H5+I5+J5 -> 618.72 | L5: 2 | M5: =K16*L5*0.1 -> 1167.71 | N5: 1168 | O5: 33.4686 | P5: 0 | Q5: 0 | R5: 2022年秋季学期累计结余696.5312万元，结转2023年度使用。
A6: 2 | C6: 福州第二技师学院 | D6: 0 | E6: 49 | F6: =152+2521 -> 2673 | G6: 2722 | H6: 0 | I6: 15.68 | J6: 561.33 | K6: 577.01 | O6: 14.8966
A7: 3 | C7: 福州市旅游技术学校 | D7: 0 | E7: 0 | F7: 3052 | G7: 3052 | H7: 0 | I7: 0 | J7: 640.92 | K7: 640.92 | O7: -29.3401
A8: 4 | C8: 福建中华技师学院 | D8: 0 | E8: 0 | F8: 4547 | G8: 4547 | H8: 0 | I8: 0 | J8: 954.87 | K8: 954.87 | O8: 369.351
A9: 5 | C9: 福建省新华技术学校 | D9: 0 | E9: 0 | F9: 1942 | G9: 1942 | H9: 0 | I9: 0 | J9: 407.82 | K9: 407.82 | O9: 38.0934
A10: 6 | C10: 福建省东南技术学校 | D10: 0 | E10: 0 | F10: 428 | G10: 428 | H10: 0 | I10: 0 | J10: 89.88 | K10: 89.88 | O10: 12.44
A11: 7 | C11: 福建财茂工业技术学校 | D11: 0 | E11: 0 | F11: 4087 | G11: 4087 | H11: 0 | I11: 0 | J11: 858.27 | K11: 858.27 | O11: 51.9984
A12: 8 | C12: 福建省闽江职业技术学校 | D12: 0 | E12: 0 | F12: 3002 | G12: 3002 | H12: 0 | I12: 0 | J12: 630.42 | K12: 630.42 | O12: -14.8898
A13: 9 | C13: 福建省飞毛腿技师学院 | D13: 0 | E13: 49 | F13: 3491 | G13: 3540 | H13: 0 | I13: 15.68 | J13: 733.11 | K13: 748.79 | O13: 219.6884
A14: 10 | C14: 福建省新东方技工学校 | D14: 0 | E14: 0 | F14: 1485 | G14: 1485 | H14: 0 | I14: 0 | J14: 311.85 | K14: 311.85 | O14: -6.243
A15: 11 | C15: 福州连江县技工学校 | D15: 0 | E15: 0 | F15: 0 | G15: 0 | H15: 0 | I15: 0 | J15: 0 | K15: 0 | O15: 7.0677
A16: 福州市合计 | D16: 0 | E16: =SUM(E5:E14) -> 131 | F16: 27603 | G16: 27734 | H16: 0 | I16: =SUM(I5:I14) -> 41.92 | J16: 5796.63 | K16: 5838.55 | O16: =SUM(O5:O15) -> 696.5312
A17: 12 | B17: 宁德 | C17: 宁德技师学院 | D17: 0 | E17: 213 | F17: =519+2640 -> 3159 | G17: =F17+E17+D17 -> 3372 | H17: 0 | I17: =E17*0.32 -> 68.16 | J17: =F17*0.21 -> 663.39 | K17: =J17+I17+H17 -> 731.55 | L17: 6 | M17: =K19*L17*0.1 -> 459.09 | N17: 460 | O17: -26.5657 | P17: 26.1509 | Q17: 32
A18: 13 | C18: 福建省宁德市交通技术学校 | D18: 0 | E18: 0 | F18: 160 | G18: 160 | H18: 0 | I18: 0 | J18: 33.6 | K18: 33.6 | O18: 0.4148
A19: 宁德市本级小计 | D19: =SUM(D17:D18) -> 0 | E19: 213 | F19: 3319 | G19: 3532 | H19: 0 | I19: 68.16 | J19: 696.99 | K19: 765.15 | O19: =SUM(O17:O18) -> -26.1509
A20: 14 | C20: 宁德市古田中等技术学校 | D20: 0 | E20: 0 | F20: 64 | G20: 64 | H20: =D20*0.24 -> 0 | I20: =E20*0.32 -> 0 | J20: 13.44 | K20: 13.44 | L20: 8 | M20: =K21*L20*0.1 -> 10.752 | N20: 11 | O20: -5.124 | P20: 5.124
A21: 古田县小计 | D21: =SUM(D20:D20) -> 0 | E21: 0 | F21: 64 | G21: 64 | H21: 0 | I21: 0 | J21: 13.44 | K21: 13.44 | O21: =SUM(O20:O20) -> -5.124
A22: 宁德市合计 | D22: 0 | E22: =E21+E19 -> 213 | F22: 3383 | G22: 3596 | H22: 0 | I22: =I21+I19 -> 68.16 | J22: 710.43 | K22: 778.59 | M22: =M20+M17 -> 469.842 | N22: =SUM(N17:N21) -> 471 | O22: =O19+O21 -> -31.2749 | P22: =SUM(P17:P21) -> 31.2749
A23: 15 | B23: 莆田 | C23: 福建省莆田市技工学校 | D23: 0 | E23: 8 | F23: =1135+21 -> 1156 | G23: =F23+E23+D23 -> 1164 | H23: 0 | I23: =E23*0.32 -> 2.56 | J23: =F23*0.21 -> 242.76 | K23: =J23+I23+H23 -> 245.32 | L23: 6 | M23: =K25*L23*0.1 -> 409.758 | N23: 410 | O23: 34.56 | P23: 0 | Q23: 0 | R23: 2022年秋季学期累计结余34.56万元，结转2023年度使用。
A24: 16 | C24: 莆田市理工技术学校 | D24: 90 | E24: 0 | F24: 1981 | G24: 2071 | H24: =D24*0.24 -> 21.6 | I24: 0 | J24: 416.01 | K24: 437.61 | O24: 0
A25: 莆田市合计 | D25: =SUM(D23:D24) -> 90 | E25: 8 | F25: 3137 | G25: 3235 | H25: 21.6 | I25: 2.56 | J25: 658.77 | K25: 682.93 | O25: =SUM(O23:O24) -> 34.56
A26: 17 | B26: 泉州 | C26: 泉州市高级技工学校 | D26: 0 | E26: 101 | F26: =211+1564 -> 1775 | G26: 1876 | H26: 0 | I26: 32.32 | J26: 372.75 | K26: 405.07 | L26: 2 | M26: =K31*L26*0.1 -> 572.96 | N26: =573 -> 573 | Q26: 0
A27: 18 | C27: 泉州城市工程技术学校 | D27: 0 | E27: 0 | F27: 3391 | G27: 3391 | H27: 0 | I27: 0 | J27: 712.11 | K27: 712.11
A28: 19 | C28: 泉州市海丝商贸职业技术学校 | D28: 0 | E28: 0 | F28: 2968 | G28: 2968 | H28: 0 | I28: 0 | J28: 623.28 | K28: 623.28
A29: 20 | C29: 泉州市南方科技职业技术学校 | D29: 0 | E29: 0 | F29: 3798 | G29: 3798 | H29: 0 | I29: 0 | J29: 797.58 | K29: 797.58
A30: 21 | C30: 泉州市国励工贸职业技术学校 | D30: 0 | E30: 0 | F30: 1556 | G30: 1556 | H30: =SUM(H26:H29) -> 0 | I30: 0 | J30: 326.76 | K30: 326.76
B31: 泉州市本级小计 | D31: =SUM(D26:D30) -> 0 | E31: 101 | F31: 13488 | G31: 13589 | H31: 0 | I31: 32.32 | J31: 2832.48 | K31: 2864.8
A32: 22 | B32: 泉州 | C32: 泉州市惠安技术学校 | D32: 0 | E32: 0 | F32: 150 | G32: =F32+E32+D32 -> 150 | H32: =D32*0.24 -> 0 | I32: =E32*0.32 -> 0 | J32: =F32*0.21 -> 31.5 | K32: =J32+I32+H32 -> 31.5 | L32: 4 | M32: =K34*L32*0.1 -> 40.572 | N32: 41 | Q32: 0
A33: 23 | C33: 泉州市云扬航空职业技术学校 | D33: 0 | E33: 0 | F33: 333 | G33: 333 | H33: =D33*0.24 -> 0 | I33: 0 | J33: 69.93 | K33: 69.93
B34: 惠安小计 | D34: =SUM(D32:D33) -> 0 | E34: 0 | F34: 483 | G34: 483 | H34: 0 | I34: 0 | J34: 101.43 | K34: 101.43 | Q34: =Q32 -> 0
A35: 泉州市合计 | D35: =D34+D31 -> 0 | E35: 101 | F35: 13971 | G35: 14072 | H35: 0 | I35: 32.32 | J35: 2933.91 | K35: 2966.23 | M35: =M32+M26 -> 613.532 | N35: =SUM(N26:N34) -> 614 | Q35: =Q34+Q26 -> 0
A36: 19 | B36: 漳州 | C36: 漳州技师学院 | D36: 0 | E36: 117 | F36: =4029+126 -> 4155 | G36: 4272 | H36: 0 | I36: 37.44 | J36: 872.55 | K36: 909.99 | L36: 4 | M36: =K37*L36*0.1 -> 363.996 | N36: 364 | O36: 0 | P36: 70.1956 | Q36: 71
A37: 漳州市本级小计 | D37: 0 | E37: =SUM(E36) -> 117 | F37: 4155 | G37: 4272 | H37: 0 | I37: =SUM(I36) -> 37.44 | J37: 872.55 | K37: 909.99 | O37: =SUM(O36:O36) -> 0
A38: 20 | B38: 台投区 | C38: 福建华夏高级技工学校 | D38: 0 | E38: 73 | F38: =2331+4396 -> 6727 | G38: =F38+E38+D38 -> 6800 | H38: 0 | I38: =E38*0.32 -> 23.36 | J38: =F38*0.21 -> 1412.67 | K38: =I38+J38+H38 -> 1436.03 | L38: 4 | M38: 574.412 | N38: 575 | O38: -77.8484
A39: 台商投资区小计 | D39: 0 | E39: =SUM(E38:E38) -> 73 | F39: 6727 | G39: =G38 -> 6800 | H39: 0 | I39: 23.36 | J39: 1412.67 | K39: 1436.03 | O39: -77.8484
A40: 21 | B40: 平和 | C40: 漳州市平和技工学校 | D40: 0 | E40: 0 | F40: 186 | G40: =F40 -> 186 | H40: 0 | I40: 0 | J40: =G40*0.21 -> 39.06 | K40: =J40+I40+H40 -> 39.06 | L40: 8 | M40: 31.248 | N40: 32 | O40: 7.6528
A41: 平和县小计 | D41: 0 | E41: 0 | F41: =SUM(F40:F40) -> 186 | G41: =SUM(G40) -> 186 | H41: 0 | I41: 0 | J41: 39.06 | K41: 39.06 | O41: 7.6528
A42: 漳州市合计 | D42: 0 | E42: =E41+E39+E37 -> 190 | F42: 11068 | G42: 11258 | H42: 0 | I42: =I41+I39+I37 -> 60.8 | J42: 2324.28 | K42: 2385.08 | M42: =M40+M38+M36 -> 969.656 | N42: =N40+N38+N36 -> 971 | O42: =O41+O39 -> -70.1956
A43: 22 | B43: 龙岩 | C43: 龙岩技师学院（龙岩市高级技校） | D43: 0 | E43: 842 | F43: =3201+7395 -> 10596 | G43: =F43+E43+D43 -> 11438 | H43: 0 | I43: =E43*0.32 -> 269.44 | J43: =F43*0.21 -> 2225.16 | K43: 2494.6 | L43: 4 | M43: =K48*L43*0.1 -> 1267.648 | N43: 1268 | Q43: 0
A44: 23 | C44: 龙岩市交通职业技术学校 | D44: 0 | E44: 0 | F44: 69 | G44: 69 | H44: 0 | I44: 0 | J44: 14.49 | K44: 14.49
A45: 24 | C45: 龙岩市人才职业技术学校 | D45: 0 | E45: 0 | F45: 2298 | G45: 2298 | H45: 0 | I45: 0 | J45: 482.58 | K45: 482.58
A46: 25 | C46: 龙岩市龙翔职业技术学校 | D46: 0 | E46: 0 | F46: 560 | G46: 560 | H46: 0 | I46: 0 | J46: 117.6 | K46: 117.6
A47: 26 | C47: 龙岩市龙辉职业技术学校 | D47: 0 | E47: 0 | F47: 285 | G47: 285 | H47: 0 | I47: 0 | J47: 59.85 | K47: 59.85
A48: 龙岩市合计 | D48: =SUM(D43:D47) -> 0 | E48: 842 | F48: 13808 | G48: 14650 | H48: 0 | I48: =SUM(I43:I47) -> 269.44 | J48: 2899.68 | K48: 3169.12
A49: 27 | B49: 三明 | C49: 三明市高级技工学校 | D49: 0 | E49: 0 | F49: 1485 | G49: =F49+E49+D49 -> 1485 | H49: =D49*0.24 -> 0 | I49: =D49*0.32 -> 0 | J49: =F49*0.21 -> 311.85 | K49: =J49+I49+H49 -> 311.85 | L49: 6 | M49: =K53*L49*0.1 -> 468.246 | N49: 469 | O49: -30.4896 | P49: 1.2357 | Q49: 2
C50: 三明技师学院 | D50: 0 | E50: 10 | F50: =1939+32 -> 1971 | G50: 1981 | H50: 0 | I50: =E50*0.32 -> 3.2 | J50: 413.91 | K50: 417.11 | O50: 13.3265
A51: 28 | C51: 三明市第二高级技工学校 | D51: 0 | E51: 0 | F51: 4 | G51: 4 | H51: 0 | I51: 0 | J51: 0.84 | K51: 0.84 | O51: 0
A52: 29 | C52: 福建三明中艺技术学校 | D52: 0 | E52: 0 | F52: 241 | G52: 241 | H52: 0 | I52: 0 | J52: 50.61 | K52: 50.61 | O52: 15.9274
A53: 三明市本级合计 | D53: =SUM(D49:D52) -> 0 | E53: 10 | F53: 3701 | G53: 3711 | H53: 0 | I53: 3.2 | J53: 777.21 | K53: 780.41 | O53: =SUM(O49:O52) -> -1.2357
B54: 永安 | C54: 永安市技校 | D54: 0 | E54: 0 | F54: 0 | G54: 0 | H54: 0 | I54: 0 | J54: 0 | K54: 0 | L54: 4 | M54: 0 | N54: 0 | O54: 32.29002 | P54: 0 | Q54: 0
A55: 永安市小计 | D55: 0 | E55: 0 | F55: 0 | G55: 0 | H55: 0 | I55: 0 | J55: 0 | K55: 0 | M55: =SUM(M54:M54) -> 0 | N55: 0 | O55: 32.29002
C56: 三明市合计 | D56: =D55+D53 -> 0 | E56: 10 | F56: 3701 | G56: 3711 | H56: 0 | I56: 3.2 | J56: 777.21 | K56: 780.41 | M56: =M55+M49 -> 468.246 | N56: =N55+N49 -> 469 | O56: =O55+O53 -> 31.05432 | P56: =P54+P49 -> 1.2357 | Q56: =SUM(Q49:Q55) -> 2
A57: 31 | B57: 南平市本级 | C57: 福建省南平技师学院 | D57: 0 | E57: 63 | F57: =802+2079 -> 2881 | G57: =F57+E57+D57 -> 2944 | H57: 0 | I57: =E57*0.32 -> 20.16 | J57: =F57*0.21 -> 605.01 | K57: =I57+J57+H57 -> 625.17 | L57: 6 | M57: =K60*L57*0.1 -> 551.124 | N57: 552 | O57: 40.344 | P57: 0 | Q57: 0 | R57: 2022年秋季学期累计结余56.98万元，结转2023年度使用。
A58: 32 | C58: 福建省南平市闽北高级技工学校 | D58: 0 | E58: 0 | F58: 1230 | G58: 1230 | H58: 0 | I58: 0 | J58: 258.3 | K58: 258.3 | O58: 16.636
A59: 33 | C59: 南平市交通中等技术学校 | D59: 0 | E59: 0 | F59: 167 | G59: 167 | H59: 0 | I59: 0 | J59: 35.07 | K59: 35.07 | O59: 0
A60: 南平市本级小计 | D60: =SUM(D57:D59) -> 0 | E60: 63 | F60: 4278 | G60: 4341 | H60: 0 | I60: 20.16 | J60: 898.38 | K60: 918.54 | O60: =SUM(O57:O59) -> 56.98
A61: 34 | B61: 建瓯 | C61: 福建省建瓯市技工学校 | D61: 0 | E61: 0 | F61: 546 | G61: =F61+E61+D61 -> 546 | H61: 0 | I61: =E61*0.32 -> 0 | J61: =F61*0.21 -> 114.66 | K61: =J61+I61+H61 -> 114.66 | L61: 8 | M61: =K62*L61*0.1 -> 91.728 | N61: 92 | O61: 32.245 | P61: 0 | Q61: 0 | R61: 2022年秋季学期累计结余32.245万元，结转2023年度使用。
A62: 建瓯市小计 | D62: 0 | E62: 0 | F62: =SUM(F61:F61) -> 546 | G62: 546 | H62: 0 | I62: 0 | J62: 114.66 | K62: 114.66 | O62: =SUM(O61:O61) -> 32.245 | P62: 0 | Q62: =Q61+Q57 -> 0
A63: 南平市合计 | D63: =D62+D60 -> 0 | E63: 63 | F63: 4824 | G63: 4887 | H63: 0 | I63: 20.16 | J63: 1013.04 | K63: 1033.2 | L63: ＿ | M63: =M61+M57 -> 642.852 | N63: =N57+N61 -> 644 | O63: =O62+O60 -> 89.225 | P63: =P62+P57 -> 0 | Q63: =Q57+Q62 -> 0
A64: 全省合计 | D64: =D63+D53+D48+D42+D35+D25+D22+D16 -> 90 | E64: 1558 | F64: 81495 | G64: 83143 | H64: =H63++H53+H48+H42+H35+H25+H22+H16 -> 21.6 | I64: =I63+I53+I48+I42+I35+I25+I22+I16 -> 498.56 | J64: 17113.95 | K64: 17634.11 | L64: ＿ | M64: =M63+M49+M42+M35+M23+M22+M5+M43 -> 6009.244 | N64: =N63+N49+N43+N42+N35+N23+N22+N5 -> 6015 | O64: =O63+O56+O48+O42+O35+O25+O22+O16 -> 749.90002 | P64: =P63+P56+P48+P36+P35+P23+P22+P5 -> 102.7062 | Q64: =Q63+Q56+Q43+Q36+Q35+Q23+Q17+Q5 -> 105
